{"text_format":"1","workbook":"xlsx","n_sheets":16,"sheets":["Řídící panel","Volba prvků","Předpoklady","Jednorázové služby","Zalohy","ABC 01","ABC 02","ABC 03.1","ABC 03","ABC 04","Periodické služby","Prvky kolokace","Náklady jednorázové","Investice","Náklady na opakující se služby","Ceny"],"not_rendered":{"charts":0,"images":81,"macros":1,"external_links":0,"defined_names":10,"comments":2,"pivot_tables":0},"unopened":[],"bounds":{"document_bytes":16777216,"sheet_cells":100000,"rows_first":2000,"rows_last":500,"rows_between":2000,"halvings":0,"cell_chars":16384,"cell_head_chars":4096},"cells_cut":0,"cells_raw":0,"read":"whole","date_system":"1900"}

{"sheet":"Řídící panel","index":0,"n_rows":31,"n_cols":12,"rows_kept":31,"cut":false,"hidden":false,"merged":[[0,0,0,14]]}
["Adaptabilný model nákladov na kolokáciu - TÚ SR"]
[]
[null,null,null,null,null,null,"Kontrolný panel"]
[]
[]
[]
[]
[]
[]
[]
[]
[]
[]
[]
[]
[]
[]
[]
[]
[]
[]
[]
[]
[]
[]
[]
[]
[]
[]
[]
[null,null,null,null,null,null,null,null,null,null,null,"© Ladislav Chrudina Consulting 2008"]

{"sheet":"Volba prvků","index":1,"n_rows":47,"n_cols":6,"rows_kept":47,"cut":false,"hidden":false,"merged":[[0,0,0,1],[1,0,1,1],[16,5,21,8],[5,5,10,8],[3,1,3,2]]}
["Náklady na kolokáciu"]
["Volba prvkov kolokácie"]
[]
[null,"SEZNAM SPECIFIKACÍ A VOLITELNÝCH PRVKŮ KOLOKACE",null,"započíst"]
[]
[null,"Specifikace spojovacích kabelů",null,null,null,"Zaškrtnutím zaškrtávacího políčka u specifikace spojovacích kabelů se blíže určí s jakými typy kabelů bude model pracovat. Pokud se jednotlivé typy neurčí bude model kalkulovat pouze jedinou (nejvyšší) cenu za spojovací kabely (odděleně pro fyzickou a vzdálenou kolokaci)."]
[null,"Spojovací kabely vnitřní - fyzická kolokace    "]
[null,"stíněný vnitřní spojovací kabel (vč. pásku na HR)"]
[null,"nestíněný vnitřní spojovací kabel (vč. pásku na HR)"]
[]
[null,"Vnější spojovací kabely - vzdálená kolokace"]
[null,"vnější spojovací kabel metalický pro vnitřní prostředí"]
[null,"vnější spojovací kabel metalický stíněný pro vnitřní prostředí"]
[null,"vnější spojovací kabel metalický pro vnější prostředí"]
[null,"vnější spojovací kabel metalický stíněný pro vnější prostředí"]
[]
[null,"Volitelné prvky",null,null,null,"Zaškrtnutím zaškrtávacího políčka u příslušného prvku kolokace se aktivuje rozsah započítávaných prvků do propočtu nákladů. Na listech vstupních údajů se nezaškrtnuté položky utlumí a není nutné vyplňovat."]
[null,"Spojovací okruhy"]
[null,"stíněný vnitřní spojovací kabel metalický 2Mbit/s (vč. DR)"]
[null,"optický vnitřní spojovací kabel (vč.OR)"]
[]
[null,"Kabely sběrného okruhu"]
[null,"kabel sběrného okruhu optický"]
[null,"kabel sběrného okruhu metalický"]
[]
[]
[null,"Kabelové rošty a prostupy"]
[null,"nájem prostoru v kabelovém roštu  ST"]
[null,"nájem prostupu do budovy"]
[null,"nájem prostoru pro umístění roštu oprávněného poskytovatele"]
[]
[null,"Dalšie súvisiace zariadenia"]
[null,"poskytování napájení 48 V"]
[null,"poskytování technologického napájení 220 V"]
[null,"UPS"]
[]
[null,"Dalšie slúžby a pronájmy"]
[]
[null,"Další prostory"]
[null,"nájem prostoru pro umístění antény v zoně I"]
[null,"nájem prostoru pro umístění antény v zoně II"]
[null,"nájem prostoru pro umístění antény v zoně III"]
[null,"nájem prostoru pro umístění antény v zoně IV"]
[null,"nájem prostoru pro umístění kabelu na pozemku ST v zoně I"]
[null,"nájem prostoru pro umístění kabelu na pozemku ST v zoně II"]
[null,"nájem prostoru pro umístění kabelu na pozemku ST v zoně III"]
[null,"nájem prostoru pro umístění kabelu na pozemku ST v zoně IV"]

{"sheet":"Předpoklady","index":2,"n_rows":93,"n_cols":13,"rows_kept":93,"cut":false,"hidden":false,"merged":[[41,7,43,7],[19,6,19,7],[5,12,8,12],[5,7,7,7],[5,8,7,8],[28,7,30,7]]}
["Náklady na kolokáciu"]
["Vstupné údaje - predpoklady"]
["Vyplňují se pouze údaje podbarvené zelenou farbou!"]
["1.objemy služieb","jednotka","rok T-1"," rok T","rok T+1"]
["Jednorázové služby"]
["počet predbežných šetrení za kalendárny rok","počet",null,null,null,null,null,"Podíl komunikačních a společných ploch na celkové ploše kolokačního prostoru",null,null,null,null,"Poznamenej si hodnoty kapacity kabelů"]
["počet  podrobných šetrení za kalendárny rok","počet"]
["počet obhlídek míst kolokácie za kalendárný rok","počet"]
["počet provedených požadavků na změny kolokace","počet"]
["počet identifikácií miesta prístupu","počet",null,null,null,null,null,"Kapacita kabelů HR-PR","počet párov"]
["počet sprevádzaných prístupov","počet",null,null,null,null,null,"kapacita 1 LSA pásku na HR"]
["vydanie povolenia na vstup do špecifikovaných miest na 3 mesiace","počet",null,null,null,null,null,"základní počet párů připojených k PR"]
["počet vydaných preukazov (do 31.12 b.r.)","počet",null,null,null,null,null,"vnútorný spojovací kábel  "]
["počet prevádzkových testov zariadenia","počet",null,null,null,null,null," "]
["počet administrativných posúdenie zariadenia","počet",null,null,null,null,null,"vonkajší spojovací kábel "]
["Kolokácia:",null,null,null,null,null,null," "]
["celkový počet kolokačných prostorov k 1.1","počet",null,null,null,null,null," "]
["počet novo zriadených kolokačných prostorov","počet",null,null,null,null,null," "]
["celková plocha kolokačných prostorov k 1.1","m2"]
["celková plocha novo zriadených kolokačných prostorov","m2",null,null,null,null,"POMOCNÉ TABULKY"]
["celkový počet kolokačných miest k 1.1","počet"]
["počet novo zriadených kolokačných miest","počet",null,null,null,null,null,"Kalkul.1 Automatický výpočet počtu instalací kabelů (100% instalace prováděná ST)"]
["celková plocha kolokačních miest k 1.1","m2",null,null,null,null,null,"počet novo zprístupnených vedení"]
["celková plocha novo zriadených kolokačných miest","m2",null,null,null,null,null,"základný počet párov pripojených k OR"]
["celkový počet zpřístupněných účastníckých vedení (párov) k 1.1","počet",null,null,null,null,null,"podiel vzdálených kolokácií"]
["celkový počet novo zprístupněných účastnických vedení (párov)","počet",null,null,null,null,null,"počet instalací vnútorných kabelov",null,{"$f":"$J$23/$J$24*(1-$J$25)","v":{"$error":"#DIV/0!"}}]
["podíl vedení prepojených na PR ve vzdálené kolokaci (stav k 31.12)","%",null,null,null,null,null,"počet instalací vonkajších kabelov",null,{"$f":"$J$23/$J$24*$J$25","v":{"$error":"#DIV/0!"}}]
["průměrná délka vedení(páru) HR-PR (fyzická kolokácia)","m"]
["průměrná délka vedení(páru) HR-PR (vzdálená kolokácia)","m",null,null,null,null,null,"Chcete-li použít vypočtené údaje  Tab. 1  pro údaje  Objemy služeb ř.34 a 35 stiskněte tlačítko Použít"]
["počet kabelových sberných okruhov (stav k 31.12)","počet"]
["počet radioreléových sberných okruhov (stav k 31.12)","počet"]
["Ïnstalácia súvisiacich zariadení (bez rozdělovačov)","počet"]
["v tom:"]
[" počet instalací vnitřních spojovacích kabelů a pásků na HR a PR při kapacitě párů","počet",null,null,null,null,null,"Kalkul. 2 Výpočet priemerné dlžky vedenia HR-OR "]
["počet instalací vnějších spojovacích kabelů a pásků na HR a PR při kapacitě párů","počet",null,null,null,null,null,"stav k 31.12, údaje v m","rok T-1","rok T","rok T+1"]
["Instalácie rozdělovačov","počet",null,null,null,null,null,"celková dlžka vedenia (1 páru) fyzickej kolokacie"]
["volitelná zariadení:",null,null,null,null,null,null,"celková dlžka vedenia (1 páru) vzdialenej  kolokacie"]
["počet instalací napájení 48 a 230V","počet",null,null,null,null,null,"Výsledné hodnoty (nevyplňujte!)"]
["počet instalací UPS","počet",null,null,null,null,null,"priemerná dlžka vedenia HR-OR fyzická kolokacia",{"$f":"$I$36/(($C$25+$C$26)*(1-$C$27))","v":{"$error":"#DIV/0!"}},{"$f":"$J$36/(($D$25+$D$26)*(1-$D$27))","v":{"$error":"#DIV/0!"}},{"$f":"$K$36/(($E$25+$E$26)*(1-$E$27))","v":{"$error":"#DIV/0!"}}]
["počet instalací optického sběrného okruhu","počet",null,null,null,null,null,"priemerná dlžka vedenia HR-OR vzdialená kolokacia",0,0,0]
["počet instalací metalického sběrné okruhu","počet"]
[null,null,null,null,null,null,null,"Chcete-li použít vypočtené údaje  Tab. 2  pro údaje  Objemy služeb ř.28 a 29 stiskněte tlačítko Použít"]
[]
[]
[]
[]
[]
[]
[]
[]
["2. stavebné investície"]
["náklad na úpravu  kolokačných prostorov","tis €"]
[]
[]
["3. ekonomické a finančné predpoklady"]
["Náklady na kapitál ( WACC)","%"]
["Réžia provozných nákladov ","%"]
[]
[]
[]
[]
["4.vedlejší náklady"]
["náklady na výrobu jednoho preukazu","1ks"]
[]
[]
[]
[" 5. údaje o cenách nehnutelností"]
["Průměrná roční cena pronájmu podle zón (v €)",null,"cena pronájmu 1m2 stavební plochy/pozemku","cena pronájmu1m2 užitkové plochy průmyslové","počet obyvatel","zkratka názvu zóny"]
["Zóna I Bratislava ",null,null,null,427,"Bratislava"]
["Zóna II Košice",null,null,null,235,"Košice"]
["Zóna III Ostatní krajská města",null,null,null,{"$f":"80+84+91+57+68+86","v":466},"mestá"]
["Zóna IV Okresní města a ostatní kolokace",null,null,null,{"$f":"5400-E69-E70-E71","v":4272},"vidiek"]
["Slovensko - vážený průměr (váha=počet obyvatel)",null,null,null,{"$f":"SUM(E69:E72)","v":5400},"Slovensko"]
[]
[]
["6. Modelová kalkulácia nákladov na vybudovanie kolokačného priestoru"]
[null,null,"cena za jednotku v €","jednotek","cena v €"]
["plocha kolokačného priestora","m2"]
["výška kolokačného priestora","m"]
["projektové práce",null,null,null,{"$f":"C80*D80","v":0}]
["bourací práce a odvoz sutě","m3",null,null,{"$f":"C81*D81","v":0}]
["stavebné práce (výstavba priečok)","m2",null,null,0]
["realizácia zdvojenej podlahy","m2",null,null,0]
["protipožárné dvere",null,null,null,0]
["elektroinstalácie","systém",null,null,0]
["rozvádzač 220 ",null,null,null,0]
["rozvádzač 48 V ",null,null,null,0]
["UPS",null,null,null,0]
["vetranie/klimatizácia","systém",null,null,0]
["elektricko požárna signalizacia a zabezpečení",null,null,null,0]
["elektronická zabezpečovacia signalizácia",null,null,null,0]
["Celkom čistý kolokačný priestor","€",null,null,{"$f":"SUM(E80:E91)","v":0}]
["náklad na ohraničenie 1 kolokačného miesta priečkami","m2",null,null,{"$f":"C93*D93","v":0}]

{"sheet":"Jednorázové služby","index":3,"n_rows":38,"n_cols":3,"rows_kept":38,"cut":false,"hidden":false,"merged":[]}
["Náklady na kolokaci"]
["Vstupní údaje - jednorázové (neperiodické) služby"]
[]
["1.prípravné práce"]
[null,"celkový počet  vykázaných hodin za rok"," průměrný hodinový náklad (bezWACC)"]
["predbežné šetrenie"]
["podrobné šetrenie"]
["obhlídka místa kolokácie"]
["zmena požiadavky na kolokáciu"]
[]
["2. realizácia"]
[null,"celkový počet  vykázaných hodin za rok"," průměrný hodinový náklad (bez WACC)"]
["zriadenie kolokačného priestoru"]
["zriadenie kolokačného miesta"]
["identifikácia miesta prístupu"]
[]
[]
["3.inštalacia súvisiacich zariadení"]
[null,"celkový počet vykázaných hodin za rok"," průměrný hodinový náklad (bez WACC)"]
["inštalácia suvisiacich zariadení (bez rozbočovača)"]
["v tom: inštálácia vnůtorných spojovacích kabelov"]
["                           inštalácia vonkajších kabelov"]
["inštalácia rozbočovača"]
[]
["4.prevádzka"]
[null,"celkový počet vykázaných hodin za rok"," průměrný hodinový náklad (bez WACC)"]
["sprevádzaný prístup"]
["vydanie povolenia na vstup do špecifikovaných miest na 3 mesiace"]
["vydanie preukazu (do 31.12 b.r.)"]
["prevádzkový test zariadenia"]
["administrativné posúdenie zariadenia"]
[]
["5. Inštalácia volitelných súvisiacích zariadení"]
[null,"celkový počet vykázaných hodin za rok"," průměrný hodinový náklad (bez WACC)"]
["Inštalácia napájania 48 a 230 V"]
["Inštalácia UPS"]
["Inštalácia optického sberného okruhu"]
["Inštalácia metalického sberného okruhu"]

{"sheet":"Zalohy","index":4,"n_rows":34,"n_cols":5,"rows_kept":34,"cut":false,"hidden":true,"merged":[[29,3,29,4],[21,3,21,4],[1,3,1,4],[8,3,8,4],[14,3,14,4]]}
["1. Obnova listu:Vstupní údaje - jednorázové (neperiodické) služby"]
["1-prípravné práce",null,null,"změna v %"]
[null,null,null,{"$f":"'Jednorázové služby'!$B$6/Zalohy!$A$3","v":{"$error":"#DIV/0!"}},{"$f":"'Jednorázové služby'!$C$6/Zalohy!$B$3","v":{"$error":"#DIV/0!"}}]
[null,null,null,{"$f":"'Jednorázové služby'!$B$7/Zalohy!$A$4","v":{"$error":"#DIV/0!"}},{"$f":"'Jednorázové služby'!$C$7/Zalohy!$B$4","v":{"$error":"#DIV/0!"}}]
[null,null,null,{"$f":"'Jednorázové služby'!$B$8/Zalohy!$A$5","v":{"$error":"#DIV/0!"}},{"$f":"'Jednorázové služby'!$C$8/Zalohy!$B$5","v":{"$error":"#DIV/0!"}}]
[null,null,null,{"$f":"'Jednorázové služby'!$B$9/Zalohy!$A$6","v":{"$error":"#DIV/0!"}},{"$f":"'Jednorázové služby'!$C$9/Zalohy!$B$6","v":{"$error":"#DIV/0!"}}]
[]
[]
["2-realizácia",null,null,"změna v %"]
[null,null,null,{"$f":"'Jednorázové služby'!$B$13/Zalohy!$A$10","v":{"$error":"#DIV/0!"}},{"$f":"'Jednorázové služby'!$C$13/Zalohy!$B$10","v":{"$error":"#DIV/0!"}}]
[null,null,null,{"$f":"'Jednorázové služby'!$B$14/Zalohy!$A$11","v":{"$error":"#DIV/0!"}},{"$f":"'Jednorázové služby'!$C$14/Zalohy!$B$11","v":{"$error":"#DIV/0!"}}]
[null,null,null,{"$f":"'Jednorázové služby'!$B$15/Zalohy!$A$12","v":{"$error":"#DIV/0!"}},{"$f":"'Jednorázové služby'!$C$15/Zalohy!$B$12","v":{"$error":"#DIV/0!"}}]
[]
[]
["3-inštalácia",null,null,"změna v %"]
[null,null,null,{"$f":"'Jednorázové služby'!#REF!/Zalohy!$A$16","v":{"$error":"#REF!"}},{"$f":"'Jednorázové služby'!#REF!/Zalohy!$B$16","v":{"$error":"#REF!"}}]
["N/A","N/A",null,"N/A","N/A"]
["N/A","N/A",null,"N/A","N/A"]
[300,25,null,{"$f":"'Jednorázové služby'!$B$23/Zalohy!$A$19","v":0},{"$f":"'Jednorázové služby'!$C$23/Zalohy!$B$19","v":0}]
[]
[]
["4-realizácia",null,null,"změna v %"]
[null,null,null,{"$f":"'Jednorázové služby'!$B$20/Zalohy!$A$23","v":{"$error":"#DIV/0!"}},{"$f":"'Jednorázové služby'!$C$20/Zalohy!$B$23","v":{"$error":"#DIV/0!"}}]
[null,null,null,{"$f":"'Jednorázové služby'!$B$28/Zalohy!$A$24","v":{"$error":"#DIV/0!"}},{"$f":"'Jednorázové služby'!$C$28/Zalohy!$B$24","v":{"$error":"#DIV/0!"}}]
[null,null,null,{"$f":"'Jednorázové služby'!$B$29/Zalohy!$A$25","v":{"$error":"#DIV/0!"}},{"$f":"'Jednorázové služby'!$C$29/Zalohy!$B$25","v":{"$error":"#DIV/0!"}}]
[null,null,null,{"$f":"'Jednorázové služby'!$B$30/Zalohy!$A$26","v":{"$error":"#DIV/0!"}},{"$f":"'Jednorázové služby'!$C$30/Zalohy!$B$26","v":{"$error":"#DIV/0!"}}]
[null,null,null,{"$f":"'Jednorázové služby'!$B$31/Zalohy!$A$27","v":{"$error":"#DIV/0!"}},{"$f":"'Jednorázové služby'!$C$31/Zalohy!$B$27","v":{"$error":"#DIV/0!"}}]
[]
[]
["5-volitelné",null,null,"změna v %"]
[null,null,null,{"$f":"'Jednorázové služby'!$B$35/Zalohy!$A$31","v":{"$error":"#DIV/0!"}},{"$f":"'Jednorázové služby'!$C$35/Zalohy!$B$31","v":{"$error":"#DIV/0!"}}]
[null,null,null,{"$f":"'Jednorázové služby'!$B$36/Zalohy!$A$32","v":{"$error":"#DIV/0!"}},{"$f":"'Jednorázové služby'!$C$36/Zalohy!$B$32","v":{"$error":"#DIV/0!"}}]
[null,null,null,{"$f":"'Jednorázové služby'!$B$37/Zalohy!$A$33","v":{"$error":"#DIV/0!"}},{"$f":"'Jednorázové služby'!$C$37/Zalohy!$B$33","v":{"$error":"#DIV/0!"}}]
[null,null,null,{"$f":"'Jednorázové služby'!$B$38/Zalohy!$A$34","v":{"$error":"#DIV/0!"}},{"$f":"'Jednorázové služby'!$C$38/Zalohy!$B$34","v":{"$error":"#DIV/0!"}}]

{"sheet":"ABC 01","index":5,"n_rows":90,"n_cols":17,"rows_kept":90,"cut":false,"hidden":true,"merged":[[54,2,54,16],[74,2,74,16],[13,2,13,16],[34,2,34,16]]}
["NÁKLADY NA KOLOKÁCIU"]
["ANALYTICKÉ TABULKY 01 - ACTIVITY BASED COSTING"]
[]
["Náklady  nákladových středisek (cost poolů) ( bez nákladů na vložený kapitál)"]
[" Cost pool (CP)","Celkom","CP1","CP2","CP3","CP4","CP5","CP6","CP7","CP8","CP9","CP10","CP11","CP12","CP 13","CP14","CP15"]
[" náklady CP celkom",{"$f":"SUM(C6:Q6)","v":0}]
["počet hodin CP celkom",{"$f":"SUM(C7:Q7)","v":0}]
["průměrný hodinový náklad CP",{"$f":"B6/B7","v":{"$error":"#DIV/0!"}},{"$f":"C6/C7","v":{"$error":"#DIV/0!"}},{"$error":"#DIV/0!"},{"$error":"#DIV/0!"},{"$error":"#DIV/0!"},{"$error":"#DIV/0!"},{"$error":"#DIV/0!"},{"$error":"#DIV/0!"},{"$error":"#DIV/0!"},{"$error":"#DIV/0!"},{"$error":"#DIV/0!"},{"$error":"#DIV/0!"},{"$error":"#DIV/0!"},{"$error":"#DIV/0!"},{"$error":"#DIV/0!"},{"$error":"#DIV/0!"}]
[]
[]
["1.prípravné práce"]
[]
["Predbežné šetrenie"]
[null,"Celkem","Počet hodin za rok spotřebovaných za \"cost pool\" pro jednotlivé aktivity"]
["Názov aktivíty/ Cost pool",null,"CP1","CP2","CP3","CP4","CP5","CP6","CP7","CP8","CP9","CP10","CP11","CP12","CP 13","CP14","CP15"]
["A1",{"$f":"SUM(C16:Q16)","v":0}]
["A2",{"$f":"SUM(C17:Q17)","v":0}]
["A3",0]
["A4",0]
["A5",0]
["A6",0]
["A7",0]
["A8",0]
["A9",0]
["A10",0]
["počet hodin celkem",0,{"$f":"SUM(C16:C25)","v":0},{"$f":"SUM(D16:D25)","v":0},0,0,0,0,0,0,0,0,0,0,0,0,{"$f":"SUM(Q16:Q25)","v":0}]
["průměrný hodinový náklad CP",null,{"$f":"C8","v":{"$error":"#DIV/0!"}},{"$error":"#DIV/0!"},{"$error":"#DIV/0!"},{"$error":"#DIV/0!"},{"$error":"#DIV/0!"},{"$error":"#DIV/0!"},{"$error":"#DIV/0!"},{"$error":"#DIV/0!"},{"$error":"#DIV/0!"},{"$error":"#DIV/0!"},{"$error":"#DIV/0!"},{"$error":"#DIV/0!"},{"$error":"#DIV/0!"},{"$error":"#DIV/0!"},{"$error":"#DIV/0!"}]
["náklad CP",{"$f":"SUM(C28:Q28)","v":{"$error":"#DIV/0!"}},{"$f":"C26*C27","v":{"$error":"#DIV/0!"}},{"$f":"D26*D27","v":{"$error":"#DIV/0!"}},{"$f":"E26*E27","v":{"$error":"#DIV/0!"}},{"$error":"#DIV/0!"},{"$error":"#DIV/0!"},{"$error":"#DIV/0!"},{"$error":"#DIV/0!"},{"$error":"#DIV/0!"},{"$error":"#DIV/0!"},{"$error":"#DIV/0!"},{"$error":"#DIV/0!"},{"$error":"#DIV/0!"},{"$error":"#DIV/0!"},{"$error":"#DIV/0!"},{"$error":"#DIV/0!"}]
["vážený hodinový náklad na službu",{"$f":"B28/B26","v":{"$error":"#DIV/0!"}}]
[]
[]
[]
[]
["Podrobné šetrenie"]
[null,"Celkem","Počet hodin za rok spotřebovaných za \"cost pool\" pro jednotlivé aktivity"]
["Názov aktivíty/ Cost pool",null,"CP1","CP2","CP3","CP4","CP5","CP6","CP7","CP8","CP9","CP10","CP11","CP12","CP 13","CP14","CP15"]
["A1",{"$f":"SUM(C37:Q37)","v":0}]
["A2",{"$f":"SUM(C38:Q38)","v":0}]
["A3",0]
["A4",0]
["A5",0]
["A6",0]
["A7",0]
["A8",0]
["A9",0]
["A10",0]
["počet hodin celkem",0,{"$f":"SUM(C37:C46)","v":0},0,0,0,0,0,0,0,0,0,0,0,0,0,0]
["průměrný hodinový náklad CP",null,{"$f":"C8","v":{"$error":"#DIV/0!"}},{"$error":"#DIV/0!"},{"$error":"#DIV/0!"},{"$error":"#DIV/0!"},{"$error":"#DIV/0!"},{"$error":"#DIV/0!"},{"$error":"#DIV/0!"},{"$error":"#DIV/0!"},{"$error":"#DIV/0!"},{"$error":"#DIV/0!"},{"$error":"#DIV/0!"},{"$error":"#DIV/0!"},{"$error":"#DIV/0!"},{"$error":"#DIV/0!"},{"$error":"#DIV/0!"}]
["náklad CP",{"$f":"SUM(C49:Q49)","v":{"$error":"#DIV/0!"}},{"$f":"C47*C48","v":{"$error":"#DIV/0!"}},{"$error":"#DIV/0!"},{"$error":"#DIV/0!"},{"$error":"#DIV/0!"},{"$error":"#DIV/0!"},{"$error":"#DIV/0!"},{"$error":"#DIV/0!"},{"$error":"#DIV/0!"},{"$error":"#DIV/0!"},{"$error":"#DIV/0!"},{"$error":"#DIV/0!"},{"$error":"#DIV/0!"},{"$error":"#DIV/0!"},{"$error":"#DIV/0!"},{"$error":"#DIV/0!"}]
["vážený hodinový náklad na službu",{"$f":"B49/B47","v":{"$error":"#DIV/0!"}}]
[]
[]
[]
["Obhlídka místa kolokácie"]
[null,"Celkem","Počet hodin za rok spotřebovaných za \"cost pool\" pro jednotlivé aktivity"]
["Názov aktivíty/ Cost pool",null,"CP1","CP2","CP3","CP4","CP5","CP6","CP7","CP8","CP9","CP10","CP11","CP12","CP 13","CP14","CP15"]
["A1",{"$f":"SUM(C57:Q57)","v":0}]
["A2",{"$f":"SUM(C58:Q58)","v":0}]
["A3",0]
["A4",0]
["A5",0]
["A6",0]
["A7",0]
["A8",0]
["A9",0]
["A10",0]
["počet hodin celkem",0,{"$f":"SUM(C57:C66)","v":0},0,0,0,0,0,0,0,0,0,0,0,0,0,0]
["průměrný hodinový náklad CP",null,{"$f":"C8","v":{"$error":"#DIV/0!"}},{"$error":"#DIV/0!"},{"$error":"#DIV/0!"},{"$error":"#DIV/0!"},{"$error":"#DIV/0!"},{"$error":"#DIV/0!"},{"$error":"#DIV/0!"},{"$error":"#DIV/0!"},{"$error":"#DIV/0!"},{"$error":"#DIV/0!"},{"$error":"#DIV/0!"},{"$error":"#DIV/0!"},{"$error":"#DIV/0!"},{"$error":"#DIV/0!"},{"$error":"#DIV/0!"}]
["náklad CP",{"$f":"SUM(C69:Q69)","v":{"$error":"#DIV/0!"}},{"$f":"C67*C68","v":{"$error":"#DIV/0!"}},{"$error":"#DIV/0!"},{"$error":"#DIV/0!"},{"$error":"#DIV/0!"},{"$error":"#DIV/0!"},{"$error":"#DIV/0!"},{"$error":"#DIV/0!"},{"$error":"#DIV/0!"},{"$error":"#DIV/0!"},{"$error":"#DIV/0!"},{"$error":"#DIV/0!"},{"$error":"#DIV/0!"},{"$error":"#DIV/0!"},{"$error":"#DIV/0!"},{"$error":"#DIV/0!"}]
["vážený hodinový náklad na službu",{"$f":"B69/B67","v":{"$error":"#DIV/0!"}}]
[]
[]
[]
["Změna požiadavky na kolokáciu"]
[null,"Celkem","Počet hodin za rok spotřebovaných za \"cost pool\" pro jednotlivé aktivity"]
["Názov aktivíty/ Cost pool",null,"CP1","CP2","CP3","CP4","CP5","CP6","CP7","CP8","CP9","CP10","CP11","CP12","CP 13","CP14","CP15"]
["A1",{"$f":"SUM(C77:Q77)","v":0}]
["A2",{"$f":"SUM(C78:Q78)","v":0}]
["A3",0]
["A4",0]
["A5",0]
["A6",0]
["A7",0]
["A8",0]
["A9",0]
["A10",0]
["počet hodin celkem",0,{"$f":"SUM(C77:C86)","v":0},0,0,0,0,0,0,0,0,0,0,0,0,0,0]
["průměrný hodinový náklad CP",null,{"$f":"C8","v":{"$error":"#DIV/0!"}},{"$error":"#DIV/0!"},{"$error":"#DIV/0!"},{"$error":"#DIV/0!"},{"$error":"#DIV/0!"},{"$error":"#DIV/0!"},{"$error":"#DIV/0!"},{"$error":"#DIV/0!"},{"$error":"#DIV/0!"},{"$error":"#DIV/0!"},{"$error":"#DIV/0!"},{"$error":"#DIV/0!"},{"$error":"#DIV/0!"},{"$error":"#DIV/0!"},{"$error":"#DIV/0!"}]
["náklad CP",{"$f":"SUM(C89:Q89)","v":{"$error":"#DIV/0!"}},{"$f":"C87*C88","v":{"$error":"#DIV/0!"}},{"$error":"#DIV/0!"},{"$error":"#DIV/0!"},{"$error":"#DIV/0!"},{"$error":"#DIV/0!"},{"$error":"#DIV/0!"},{"$error":"#DIV/0!"},{"$error":"#DIV/0!"},{"$error":"#DIV/0!"},{"$error":"#DIV/0!"},{"$error":"#DIV/0!"},{"$error":"#DIV/0!"},{"$error":"#DIV/0!"},{"$error":"#DIV/0!"},{"$error":"#DIV/0!"}]
["vážený hodinový náklad na službu",{"$f":"B89/B87","v":{"$error":"#DIV/0!"}}]

{"sheet":"ABC 02","index":6,"n_rows":64,"n_cols":17,"rows_kept":64,"cut":false,"hidden":true,"merged":[[68,2,68,16],[3,0,3,4],[8,2,8,16],[28,2,28,16],[48,2,48,16]]}
["NÁKLADY NA KOLOKÁCIU"]
["ANALYTICKÉ TABULKY 02 - ACTIVITY BASED COSTING"]
[]
["Tabulka ABC 02 přebírá údaje o hodinové sazbě za CP z Tabulky ABC 01 sekce Náklady  nákladových středisek (cost poolů) . Tato sekce musí být vyplněna."]
["2.realizácia"]
[]
[]
["Zriadenie kolokačného priestoru"]
[null,"Celkem","Počet hodin za rok spotřebovaných za \"cost pool\" pro jednotlivé aktivity"]
["Názov aktivíty/ Cost pool",null,"CP1","CP2","CP3","CP4","CP5","CP6","CP7","CP8","CP9","CP10","CP11","CP12","CP 13","CP14","CP15"]
["A1",{"$f":"SUM(C11:Q11)","v":0}]
["A2",{"$f":"SUM(C12:Q12)","v":0}]
["A3",0]
["A4",0]
["A5",0]
["A6",0]
["A7",0]
["A8",0]
["A9",0]
["A10",0]
["počet hodin celkem",0,{"$f":"SUM(C11:C20)","v":0},{"$f":"SUM(D11:D20)","v":0},0,0,0,0,0,0,0,0,0,0,0,0,{"$f":"SUM(Q11:Q20)","v":0}]
["průměrný hodinový náklad CP",null,{"$f":"'ABC 01'!C8","v":{"$error":"#DIV/0!"}},{"$f":"'ABC 01'!D8","v":{"$error":"#DIV/0!"}},{"$f":"'ABC 01'!E8","v":{"$error":"#DIV/0!"}},{"$f":"'ABC 01'!F8","v":{"$error":"#DIV/0!"}},{"$f":"'ABC 01'!G8","v":{"$error":"#DIV/0!"}},{"$f":"'ABC 01'!H8","v":{"$error":"#DIV/0!"}},{"$f":"'ABC 01'!I8","v":{"$error":"#DIV/0!"}},{"$f":"'ABC 01'!J8","v":{"$error":"#DIV/0!"}},{"$f":"'ABC 01'!K8","v":{"$error":"#DIV/0!"}},{"$f":"'ABC 01'!L8","v":{"$error":"#DIV/0!"}},{"$f":"'ABC 01'!M8","v":{"$error":"#DIV/0!"}},{"$f":"'ABC 01'!N8","v":{"$error":"#DIV/0!"}},{"$f":"'ABC 01'!O8","v":{"$error":"#DIV/0!"}},{"$f":"'ABC 01'!P8","v":{"$error":"#DIV/0!"}},{"$f":"'ABC 01'!Q8","v":{"$error":"#DIV/0!"}}]
["náklad CP",{"$f":"SUM(C23:Q23)","v":{"$error":"#DIV/0!"}},{"$f":"C21*C22","v":{"$error":"#DIV/0!"}},{"$f":"D21*D22","v":{"$error":"#DIV/0!"}},{"$f":"E21*E22","v":{"$error":"#DIV/0!"}},{"$error":"#DIV/0!"},{"$error":"#DIV/0!"},{"$error":"#DIV/0!"},{"$error":"#DIV/0!"},{"$error":"#DIV/0!"},{"$error":"#DIV/0!"},{"$error":"#DIV/0!"},{"$error":"#DIV/0!"},{"$error":"#DIV/0!"},{"$error":"#DIV/0!"},{"$error":"#DIV/0!"},{"$error":"#DIV/0!"}]
["vážený hodinový náklad na službu",{"$f":"B23/B21","v":{"$error":"#DIV/0!"}}]
[]
[]
[]
["Zriadenie kolokačného miesta"]
[null,"Celkem","Počet hodin za rok spotřebovaných za \"cost pool\" pro jednotlivé aktivity"]
["Názov aktivíty/ Cost pool",null,"CP1","CP2","CP3","CP4","CP5","CP6","CP7","CP8","CP9","CP10","CP11","CP12","CP 13","CP14","CP15"]
["A1",{"$f":"SUM(C31:Q31)","v":0}]
["A2",{"$f":"SUM(C32:Q32)","v":0}]
["A3",0]
["A4",0]
["A5",0]
["A6",0]
["A7",0]
["A8",0]
["A9",0]
["A10",0]
["počet hodin celkem",0,{"$f":"SUM(C31:C40)","v":0},{"$f":"SUM(D31:D40)","v":0},0,0,0,0,0,0,0,0,0,0,0,0,{"$f":"SUM(Q31:Q40)","v":0}]
["průměrný hodinový náklad CP",null,{"$f":"'ABC 01'!C8","v":{"$error":"#DIV/0!"}},{"$f":"'ABC 01'!D8","v":{"$error":"#DIV/0!"}},{"$f":"'ABC 01'!E8","v":{"$error":"#DIV/0!"}},{"$f":"'ABC 01'!F8","v":{"$error":"#DIV/0!"}},{"$f":"'ABC 01'!G8","v":{"$error":"#DIV/0!"}},{"$f":"'ABC 01'!H8","v":{"$error":"#DIV/0!"}},{"$f":"'ABC 01'!I8","v":{"$error":"#DIV/0!"}},{"$f":"'ABC 01'!J8","v":{"$error":"#DIV/0!"}},{"$f":"'ABC 01'!K8","v":{"$error":"#DIV/0!"}},{"$f":"'ABC 01'!L8","v":{"$error":"#DIV/0!"}},{"$f":"'ABC 01'!M8","v":{"$error":"#DIV/0!"}},{"$f":"'ABC 01'!N8","v":{"$error":"#DIV/0!"}},{"$f":"'ABC 01'!O8","v":{"$error":"#DIV/0!"}},{"$f":"'ABC 01'!P8","v":{"$error":"#DIV/0!"}},{"$f":"'ABC 01'!Q8","v":{"$error":"#DIV/0!"}}]
["náklad CP",{"$f":"SUM(C43:Q43)","v":{"$error":"#DIV/0!"}},{"$f":"C41*C42","v":{"$error":"#DIV/0!"}},{"$f":"D41*D42","v":{"$error":"#DIV/0!"}},{"$f":"E41*E42","v":{"$error":"#DIV/0!"}},{"$error":"#DIV/0!"},{"$error":"#DIV/0!"},{"$error":"#DIV/0!"},{"$error":"#DIV/0!"},{"$error":"#DIV/0!"},{"$error":"#DIV/0!"},{"$error":"#DIV/0!"},{"$error":"#DIV/0!"},{"$error":"#DIV/0!"},{"$error":"#DIV/0!"},{"$error":"#DIV/0!"},{"$error":"#DIV/0!"}]
["vážený hodinový náklad na službu",{"$f":"B43/B41","v":{"$error":"#DIV/0!"}}]
[]
[]
[]
["Identifikácia miesta prístupu"]
[null,"Celkem","Počet hodin za rok spotřebovaných za \"cost pool\" pro jednotlivé aktivity"]
["Názov aktivíty/ Cost pool",null,"CP1","CP2","CP3","CP4","CP5","CP6","CP7","CP8","CP9","CP10","CP11","CP12","CP 13","CP14","CP15"]
["A1",{"$f":"SUM(C51:Q51)","v":0}]
["A2",{"$f":"SUM(C52:Q52)","v":0}]
["A3",0]
["A4",0]
["A5",0]
["A6",0]
["A7",0]
["A8",0]
["A9",0]
["A10",0]
["počet hodin celkem",0,{"$f":"SUM(C51:C60)","v":0},{"$f":"SUM(D51:D60)","v":0},0,0,0,0,0,0,0,0,0,0,0,0,{"$f":"SUM(Q51:Q60)","v":0}]
["průměrný hodinový náklad CP",null,{"$f":"'ABC 01'!C8","v":{"$error":"#DIV/0!"}},{"$f":"'ABC 01'!D8","v":{"$error":"#DIV/0!"}},{"$f":"'ABC 01'!E8","v":{"$error":"#DIV/0!"}},{"$f":"'ABC 01'!F8","v":{"$error":"#DIV/0!"}},{"$f":"'ABC 01'!G8","v":{"$error":"#DIV/0!"}},{"$f":"'ABC 01'!H8","v":{"$error":"#DIV/0!"}},{"$f":"'ABC 01'!I8","v":{"$error":"#DIV/0!"}},{"$f":"'ABC 01'!J8","v":{"$error":"#DIV/0!"}},{"$f":"'ABC 01'!K8","v":{"$error":"#DIV/0!"}},{"$f":"'ABC 01'!L8","v":{"$error":"#DIV/0!"}},{"$f":"'ABC 01'!M8","v":{"$error":"#DIV/0!"}},{"$f":"'ABC 01'!N8","v":{"$error":"#DIV/0!"}},{"$f":"'ABC 01'!O8","v":{"$error":"#DIV/0!"}},{"$f":"'ABC 01'!P8","v":{"$error":"#DIV/0!"}},{"$f":"'ABC 01'!Q8","v":{"$error":"#DIV/0!"}}]
["náklad CP",{"$f":"SUM(C63:Q63)","v":{"$error":"#DIV/0!"}},{"$f":"C61*C62","v":{"$error":"#DIV/0!"}},{"$f":"D61*D62","v":{"$error":"#DIV/0!"}},{"$f":"E61*E62","v":{"$error":"#DIV/0!"}},{"$error":"#DIV/0!"},{"$error":"#DIV/0!"},{"$error":"#DIV/0!"},{"$error":"#DIV/0!"},{"$error":"#DIV/0!"},{"$error":"#DIV/0!"},{"$error":"#DIV/0!"},{"$error":"#DIV/0!"},{"$error":"#DIV/0!"},{"$error":"#DIV/0!"},{"$error":"#DIV/0!"},{"$error":"#DIV/0!"}]
["vážený hodinový náklad na službu",{"$f":"B63/B61","v":{"$error":"#DIV/0!"}}]

{"sheet":"ABC 03.1","index":7,"n_rows":97,"n_cols":17,"rows_kept":97,"cut":false,"hidden":true,"merged":[[3,0,3,4],[32,2,32,16],[53,2,53,16],[74,2,74,16],[11,2,11,16]]}
["NÁKLADY NA KOLOKÁCIU"]
["ANALYTICKÉ TABULKY 03.1 - ACTIVITY BASED COSTING"]
[]
["Tabulka ABC 03 přebírá údaje o hodinové sazbě za CP z Tabulky ABC 01 sekce -Náklady  nákladových středisek (cost poolů) . Tato sekce musí být vyplněna."]
["5.instalácie volitelných suvisiacich zariadení"]
[]
[]
[]
[]
[]
["Inštalácia napájania 48 a 230 V"]
[null,"Celkem","Počet hodin za rok spotřebovaných za \"cost pool\" pro jednotlivé aktivity"]
["Názov aktivíty/ Cost pool",null,"CP1","CP2","CP3","CP4","CP5","CP6","CP7","CP8","CP9","CP10","CP11","CP12","CP 13","CP14","CP15"]
["A1",{"$f":"SUM(C14:Q14)","v":0}]
["A2",0]
["A3",0]
["A4",0]
["A5",0]
["A6",0]
["A7",0]
["A8",0]
["A9",0]
["A10",0]
["počet hodin celkem",0,{"$f":"SUM(C14:C23)","v":0},0,0,0,0,0,0,0,0,0,0,0,0,0,0]
["průměrný hodinový náklad CP",null,{"$f":"'ABC 01'!C8","v":{"$error":"#DIV/0!"}},{"$f":"'ABC 01'!D8","v":{"$error":"#DIV/0!"}},{"$f":"'ABC 01'!E8","v":{"$error":"#DIV/0!"}},{"$f":"'ABC 01'!F8","v":{"$error":"#DIV/0!"}},{"$f":"'ABC 01'!G8","v":{"$error":"#DIV/0!"}},{"$f":"'ABC 01'!H8","v":{"$error":"#DIV/0!"}},{"$f":"'ABC 01'!I8","v":{"$error":"#DIV/0!"}},{"$f":"'ABC 01'!J8","v":{"$error":"#DIV/0!"}},{"$f":"'ABC 01'!K8","v":{"$error":"#DIV/0!"}},{"$f":"'ABC 01'!L8","v":{"$error":"#DIV/0!"}},{"$f":"'ABC 01'!M8","v":{"$error":"#DIV/0!"}},{"$f":"'ABC 01'!N8","v":{"$error":"#DIV/0!"}},{"$f":"'ABC 01'!O8","v":{"$error":"#DIV/0!"}},{"$f":"'ABC 01'!P8","v":{"$error":"#DIV/0!"}},{"$f":"'ABC 01'!Q8","v":{"$error":"#DIV/0!"}}]
["náklad CP",{"$f":"SUM(C26:Q26)","v":{"$error":"#DIV/0!"}},{"$f":"C24*C25","v":{"$error":"#DIV/0!"}},{"$error":"#DIV/0!"},{"$error":"#DIV/0!"},{"$error":"#DIV/0!"},{"$error":"#DIV/0!"},{"$error":"#DIV/0!"},{"$error":"#DIV/0!"},{"$error":"#DIV/0!"},{"$error":"#DIV/0!"},{"$error":"#DIV/0!"},{"$error":"#DIV/0!"},{"$error":"#DIV/0!"},{"$error":"#DIV/0!"},{"$error":"#DIV/0!"},{"$error":"#DIV/0!"}]
["vážený hodinový náklad na službu",{"$f":"B26/B24","v":{"$error":"#DIV/0!"}}]
[]
[]
[]
[]
["Inštalácia UPS"]
[null,"Celkem","Počet hodin za rok spotřebovaných za \"cost pool\" pro jednotlivé aktivity"]
["Názov aktivíty/ Cost pool",null,"CP1","CP2","CP3","CP4","CP5","CP6","CP7","CP8","CP9","CP10","CP11","CP12","CP 13","CP14","CP15"]
["A1",{"$f":"SUM(C35:Q35)","v":0}]
["A2",0]
["A3",0]
["A4",0]
["A5",0]
["A6",0]
["A7",0]
["A8",0]
["A9",0]
["A10",0]
["počet hodin celkem",0,{"$f":"SUM(C35:C44)","v":0},0,0,0,0,0,0,0,0,0,0,0,0,0,0]
["průměrný hodinový náklad CP",null,{"$f":"'ABC 01'!C8","v":{"$error":"#DIV/0!"}},{"$f":"'ABC 01'!D8","v":{"$error":"#DIV/0!"}},{"$f":"'ABC 01'!E8","v":{"$error":"#DIV/0!"}},{"$f":"'ABC 01'!F8","v":{"$error":"#DIV/0!"}},{"$f":"'ABC 01'!G8","v":{"$error":"#DIV/0!"}},{"$f":"'ABC 01'!H8","v":{"$error":"#DIV/0!"}},{"$f":"'ABC 01'!I8","v":{"$error":"#DIV/0!"}},{"$f":"'ABC 01'!J8","v":{"$error":"#DIV/0!"}},{"$f":"'ABC 01'!K8","v":{"$error":"#DIV/0!"}},{"$f":"'ABC 01'!L8","v":{"$error":"#DIV/0!"}},{"$f":"'ABC 01'!M8","v":{"$error":"#DIV/0!"}},{"$f":"'ABC 01'!N8","v":{"$error":"#DIV/0!"}},{"$f":"'ABC 01'!O8","v":{"$error":"#DIV/0!"}},{"$f":"'ABC 01'!P8","v":{"$error":"#DIV/0!"}},{"$f":"'ABC 01'!Q8","v":{"$error":"#DIV/0!"}}]
["náklad CP",{"$f":"SUM(C47:Q47)","v":{"$error":"#DIV/0!"}},{"$f":"C45*C46","v":{"$error":"#DIV/0!"}},{"$error":"#DIV/0!"},{"$error":"#DIV/0!"},{"$error":"#DIV/0!"},{"$error":"#DIV/0!"},{"$error":"#DIV/0!"},{"$error":"#DIV/0!"},{"$error":"#DIV/0!"},{"$error":"#DIV/0!"},{"$error":"#DIV/0!"},{"$error":"#DIV/0!"},{"$error":"#DIV/0!"},{"$error":"#DIV/0!"},{"$error":"#DIV/0!"},{"$error":"#DIV/0!"}]
["vážený hodinový náklad na službu",{"$f":"B47/B45","v":{"$error":"#DIV/0!"}}]
[]
[]
[]
[]
["Inštalácia optického sberného okruhu"]
[null,"Celkem","Počet hodin za rok spotřebovaných za \"cost pool\" pro jednotlivé aktivity"]
["Názov aktivíty/ Cost pool",null,"CP1","CP2","CP3","CP4","CP5","CP6","CP7","CP8","CP9","CP10","CP11","CP12","CP 13","CP14","CP15"]
["A1",{"$f":"SUM(C56:Q56)","v":0}]
["A2",0]
["A3",0]
["A4",0]
["A5",0]
["A6",0]
["A7",0]
["A8",0]
["A9",0]
["A10",0]
["počet hodin celkem",0,{"$f":"SUM(C56:C65)","v":0},0,0,0,0,0,0,0,0,0,0,0,0,0,0]
["průměrný hodinový náklad CP",null,{"$f":"'ABC 01'!C8","v":{"$error":"#DIV/0!"}},{"$f":"'ABC 01'!D8","v":{"$error":"#DIV/0!"}},{"$f":"'ABC 01'!E8","v":{"$error":"#DIV/0!"}},{"$f":"'ABC 01'!F8","v":{"$error":"#DIV/0!"}},{"$f":"'ABC 01'!G8","v":{"$error":"#DIV/0!"}},{"$f":"'ABC 01'!H8","v":{"$error":"#DIV/0!"}},{"$f":"'ABC 01'!I8","v":{"$error":"#DIV/0!"}},{"$f":"'ABC 01'!J8","v":{"$error":"#DIV/0!"}},{"$f":"'ABC 01'!K8","v":{"$error":"#DIV/0!"}},{"$f":"'ABC 01'!L8","v":{"$error":"#DIV/0!"}},{"$f":"'ABC 01'!M8","v":{"$error":"#DIV/0!"}},{"$f":"'ABC 01'!N8","v":{"$error":"#DIV/0!"}},{"$f":"'ABC 01'!O8","v":{"$error":"#DIV/0!"}},{"$f":"'ABC 01'!P8","v":{"$error":"#DIV/0!"}},{"$f":"'ABC 01'!Q8","v":{"$error":"#DIV/0!"}}]
["náklad CP",{"$f":"SUM(C68:Q68)","v":{"$error":"#DIV/0!"}},{"$f":"C66*C67","v":{"$error":"#DIV/0!"}},{"$error":"#DIV/0!"},{"$error":"#DIV/0!"},{"$error":"#DIV/0!"},{"$error":"#DIV/0!"},{"$error":"#DIV/0!"},{"$error":"#DIV/0!"},{"$error":"#DIV/0!"},{"$error":"#DIV/0!"},{"$error":"#DIV/0!"},{"$error":"#DIV/0!"},{"$error":"#DIV/0!"},{"$error":"#DIV/0!"},{"$error":"#DIV/0!"},{"$error":"#DIV/0!"}]
["vážený hodinový náklad na službu",{"$f":"B68/B66","v":{"$error":"#DIV/0!"}}]
[]
[]
[]
[]
["Inštalácia metalického sberného okruhu"]
[null,"Celkem","Počet hodin za rok spotřebovaných za \"cost pool\" pro jednotlivé aktivity"]
["Názov aktivíty/ Cost pool",null,"CP1","CP2","CP3","CP4","CP5","CP6","CP7","CP8","CP9","CP10","CP11","CP12","CP 13","CP14","CP15"]
["A1",{"$f":"SUM(C77:Q77)","v":0}]
["A2",0]
["A3",0]
["A4",0]
["A5",0]
["A6",0]
["A7",0]
["A8",0]
["A9",0]
["A10",0]
["počet hodin celkem",0,{"$f":"SUM(C77:C86)","v":0},0,0,0,0,0,0,0,0,0,0,0,0,0,0]
["průměrný hodinový náklad CP",null,{"$f":"'ABC 01'!C8","v":{"$error":"#DIV/0!"}},{"$f":"'ABC 01'!D8","v":{"$error":"#DIV/0!"}},{"$f":"'ABC 01'!E8","v":{"$error":"#DIV/0!"}},{"$f":"'ABC 01'!F8","v":{"$error":"#DIV/0!"}},{"$f":"'ABC 01'!G8","v":{"$error":"#DIV/0!"}},{"$f":"'ABC 01'!H8","v":{"$error":"#DIV/0!"}},{"$f":"'ABC 01'!I8","v":{"$error":"#DIV/0!"}},{"$f":"'ABC 01'!J8","v":{"$error":"#DIV/0!"}},{"$f":"'ABC 01'!K8","v":{"$error":"#DIV/0!"}},{"$f":"'ABC 01'!L8","v":{"$error":"#DIV/0!"}},{"$f":"'ABC 01'!M8","v":{"$error":"#DIV/0!"}},{"$f":"'ABC 01'!N8","v":{"$error":"#DIV/0!"}},{"$f":"'ABC 01'!O8","v":{"$error":"#DIV/0!"}},{"$f":"'ABC 01'!P8","v":{"$error":"#DIV/0!"}},{"$f":"'ABC 01'!Q8","v":{"$error":"#DIV/0!"}}]
["náklad CP",{"$f":"SUM(C89:Q89)","v":{"$error":"#DIV/0!"}},{"$f":"C87*C88","v":{"$error":"#DIV/0!"}},{"$error":"#DIV/0!"},{"$error":"#DIV/0!"},{"$error":"#DIV/0!"},{"$error":"#DIV/0!"},{"$error":"#DIV/0!"},{"$error":"#DIV/0!"},{"$error":"#DIV/0!"},{"$error":"#DIV/0!"},{"$error":"#DIV/0!"},{"$error":"#DIV/0!"},{"$error":"#DIV/0!"},{"$error":"#DIV/0!"},{"$error":"#DIV/0!"},{"$error":"#DIV/0!"}]
["vážený hodinový náklad na službu",{"$f":"B89/B87","v":{"$error":"#DIV/0!"}}]
[]
[]
[]
["Součet za všechny služby instalace souvisejících zařízení"]
["počet hodin celkem",{"$f":"B24+B45+B66+B87","v":0}]
["náklad CP celkem",{"$f":"B26+B47+B68+B89","v":{"$error":"#DIV/0!"}}]
["průměrný hodinový náklad CP",{"$f":"B96/B95","v":{"$error":"#DIV/0!"}}]

{"sheet":"ABC 03","index":8,"n_rows":71,"n_cols":17,"rows_kept":71,"cut":false,"hidden":true,"merged":[[3,0,3,4],[8,2,8,16],[29,2,29,16],[49,2,49,16]]}
["NÁKLADY NA KOLOKÁCIU"]
["ANALYTICKÉ TABULKY 03 - ACTIVITY BASED COSTING"]
[]
["Tabulka ABC 03 přebírá údaje o hodinové sazbě za CP z Tabulky ABC 01 sekce -Náklady  nákladových středisek (cost poolů) . Tato sekce musí být vyplněna."]
["3.instalácie suvisiacich zariadení"]
[]
[]
["Instalácia vnutorných spojovacích kabelov"]
[null,"Celkem","Počet hodin za rok spotřebovaných za \"cost pool\" pro jednotlivé aktivity"]
["Názov aktivíty/ Cost pool",null,"CP1","CP2","CP3","CP4","CP5","CP6","CP7","CP8","CP9","CP10","CP11","CP12","CP 13","CP14","CP15"]
["A1",{"$f":"SUM(C11:Q11)","v":0}]
["A2",0]
["A3",0]
["A4",0]
["A5",0]
["A6",0]
["A7",0]
["A8",0]
["A9",0]
["A10",0]
["počet hodin celkem",0,{"$f":"SUM(C11:C20)","v":0},0,0,0,0,0,0,0,0,0,0,0,0,0,0]
["průměrný hodinový náklad CP",null,{"$f":"'ABC 01'!C8","v":{"$error":"#DIV/0!"}},{"$f":"'ABC 01'!D8","v":{"$error":"#DIV/0!"}},{"$f":"'ABC 01'!E8","v":{"$error":"#DIV/0!"}},{"$f":"'ABC 01'!F8","v":{"$error":"#DIV/0!"}},{"$f":"'ABC 01'!G8","v":{"$error":"#DIV/0!"}},{"$f":"'ABC 01'!H8","v":{"$error":"#DIV/0!"}},{"$f":"'ABC 01'!I8","v":{"$error":"#DIV/0!"}},{"$f":"'ABC 01'!J8","v":{"$error":"#DIV/0!"}},{"$f":"'ABC 01'!K8","v":{"$error":"#DIV/0!"}},{"$f":"'ABC 01'!L8","v":{"$error":"#DIV/0!"}},{"$f":"'ABC 01'!M8","v":{"$error":"#DIV/0!"}},{"$f":"'ABC 01'!N8","v":{"$error":"#DIV/0!"}},{"$f":"'ABC 01'!O8","v":{"$error":"#DIV/0!"}},{"$f":"'ABC 01'!P8","v":{"$error":"#DIV/0!"}},{"$f":"'ABC 01'!Q8","v":{"$error":"#DIV/0!"}}]
["náklad CP",{"$f":"SUM(C23:Q23)","v":{"$error":"#DIV/0!"}},{"$f":"C21*C22","v":{"$error":"#DIV/0!"}},{"$f":"D21*D22","v":{"$error":"#DIV/0!"}},{"$f":"E21*E22","v":{"$error":"#DIV/0!"}},{"$error":"#DIV/0!"},{"$error":"#DIV/0!"},{"$error":"#DIV/0!"},{"$error":"#DIV/0!"},{"$error":"#DIV/0!"},{"$error":"#DIV/0!"},{"$error":"#DIV/0!"},{"$error":"#DIV/0!"},{"$error":"#DIV/0!"},{"$error":"#DIV/0!"},{"$error":"#DIV/0!"},{"$error":"#DIV/0!"}]
["vážený hodinový náklad na službu",{"$f":"B23/B21","v":{"$error":"#DIV/0!"}}]
[]
[]
[]
[]
["Inštalácia vonkajších spojovacích kabelov "]
[null,"Celkem","Počet hodin za rok spotřebovaných za \"cost pool\" pro jednotlivé aktivity"]
["Názov aktivíty/ Cost pool",null,"CP1","CP2","CP3","CP4","CP5","CP6","CP7","CP8","CP9","CP10","CP11","CP12","CP 13","CP14","CP15"]
["A1",{"$f":"SUM(C32:Q32)","v":0}]
["A2",0]
["A3",0]
["A4",0]
["A5",0]
["A6",0]
["A7",0]
["A8",0]
["A9",0]
["A10",0]
["počet hodin celkem",0,{"$f":"SUM(C32:C41)","v":0},0,0,0,0,0,0,0,0,0,0,0,0,0,0]
["průměrný hodinový náklad CP",null,{"$f":"'ABC 01'!C8","v":{"$error":"#DIV/0!"}},{"$f":"'ABC 01'!D8","v":{"$error":"#DIV/0!"}},{"$f":"'ABC 01'!E8","v":{"$error":"#DIV/0!"}},{"$f":"'ABC 01'!F8","v":{"$error":"#DIV/0!"}},{"$f":"'ABC 01'!G8","v":{"$error":"#DIV/0!"}},{"$f":"'ABC 01'!H8","v":{"$error":"#DIV/0!"}},{"$f":"'ABC 01'!I8","v":{"$error":"#DIV/0!"}},{"$f":"'ABC 01'!J8","v":{"$error":"#DIV/0!"}},{"$f":"'ABC 01'!K8","v":{"$error":"#DIV/0!"}},{"$f":"'ABC 01'!L8","v":{"$error":"#DIV/0!"}},{"$f":"'ABC 01'!M8","v":{"$error":"#DIV/0!"}},{"$f":"'ABC 01'!N8","v":{"$error":"#DIV/0!"}},{"$f":"'ABC 01'!O8","v":{"$error":"#DIV/0!"}},{"$f":"'ABC 01'!P8","v":{"$error":"#DIV/0!"}},{"$f":"'ABC 01'!Q8","v":{"$error":"#DIV/0!"}}]
["náklad CP",{"$f":"SUM(C44:Q44)","v":{"$error":"#DIV/0!"}},{"$f":"C42*C43","v":{"$error":"#DIV/0!"}},{"$f":"D42*D43","v":{"$error":"#DIV/0!"}},{"$f":"E42*E43","v":{"$error":"#DIV/0!"}},{"$error":"#DIV/0!"},{"$error":"#DIV/0!"},{"$error":"#DIV/0!"},{"$error":"#DIV/0!"},{"$error":"#DIV/0!"},{"$error":"#DIV/0!"},{"$error":"#DIV/0!"},{"$error":"#DIV/0!"},{"$error":"#DIV/0!"},{"$error":"#DIV/0!"},{"$error":"#DIV/0!"},{"$error":"#DIV/0!"}]
["vážený hodinový náklad na službu",{"$f":"B44/B42","v":{"$error":"#DIV/0!"}}]
[]
[]
[]
["Inštalácia rozdelovača (splittera)"]
[null,"Celkem","Počet hodin za rok spotřebovaných za \"cost pool\" pro jednotlivé aktivity"]
["Názov aktivíty/ Cost pool",null,"CP1","CP2","CP3","CP4","CP5","CP6","CP7","CP8","CP9","CP10","CP11","CP12","CP 13","CP14","CP15"]
["A1",{"$f":"SUM(C52:Q52)","v":0}]
["A2",0]
["A3",0]
["A4",0]
["A5",0]
["A6",0]
["A7",0]
["A8",0]
["A9",0]
["A10",0]
["počet hodin celkem",0,{"$f":"SUM(C52:C61)","v":0},0,0,0,0,0,0,0,0,0,0,0,0,0,0]
["průměrný hodinový náklad CP",null,{"$f":"'ABC 01'!C8","v":{"$error":"#DIV/0!"}},{"$f":"'ABC 01'!D8","v":{"$error":"#DIV/0!"}},{"$f":"'ABC 01'!E8","v":{"$error":"#DIV/0!"}},{"$f":"'ABC 01'!F8","v":{"$error":"#DIV/0!"}},{"$f":"'ABC 01'!G8","v":{"$error":"#DIV/0!"}},{"$f":"'ABC 01'!H8","v":{"$error":"#DIV/0!"}},{"$f":"'ABC 01'!I8","v":{"$error":"#DIV/0!"}},{"$f":"'ABC 01'!J8","v":{"$error":"#DIV/0!"}},{"$f":"'ABC 01'!K8","v":{"$error":"#DIV/0!"}},{"$f":"'ABC 01'!L8","v":{"$error":"#DIV/0!"}},{"$f":"'ABC 01'!M8","v":{"$error":"#DIV/0!"}},{"$f":"'ABC 01'!N8","v":{"$error":"#DIV/0!"}},{"$f":"'ABC 01'!O8","v":{"$error":"#DIV/0!"}},{"$f":"'ABC 01'!P8","v":{"$error":"#DIV/0!"}},{"$f":"'ABC 01'!Q8","v":{"$error":"#DIV/0!"}}]
["náklad CP",{"$f":"SUM(C64:Q64)","v":{"$error":"#DIV/0!"}},{"$f":"C62*C63","v":{"$error":"#DIV/0!"}},{"$f":"D62*D63","v":{"$error":"#DIV/0!"}},{"$f":"E62*E63","v":{"$error":"#DIV/0!"}},{"$error":"#DIV/0!"},{"$error":"#DIV/0!"},{"$error":"#DIV/0!"},{"$error":"#DIV/0!"},{"$error":"#DIV/0!"},{"$error":"#DIV/0!"},{"$error":"#DIV/0!"},{"$error":"#DIV/0!"},{"$error":"#DIV/0!"},{"$error":"#DIV/0!"},{"$error":"#DIV/0!"},{"$error":"#DIV/0!"}]
["vážený hodinový náklad na službu",{"$f":"B64/B62","v":{"$error":"#DIV/0!"}}]
[]
[]
["Součet za všechny služby instalace souvisejících zařízení"]
["počet hodin celkem",{"$f":"B21+B42","v":0}]
["náklad CP celkem",{"$f":"B23+B44","v":{"$error":"#DIV/0!"}}]
["průměrný hodinový náklad CP",{"$f":"B70/B69","v":{"$error":"#DIV/0!"}}]

{"sheet":"ABC 04","index":9,"n_rows":103,"n_cols":17,"rows_kept":103,"cut":false,"hidden":true,"merged":[[3,0,3,4],[87,2,87,16],[7,2,7,16],[27,2,27,16],[47,2,47,16],[67,2,67,16]]}
["NÁKLADY NA KOLOKÁCIU"]
["ANALYTICKÉ TABULKY 04 - ACTIVITY BASED COSTING"]
[]
["Tabulka ABC 04 přebírá údaje o hodinové sazbě za CP z Tabulky ABC 01 sekce -Náklady  nákladových středisek (cost poolů) . Tato sekce musí být vyplněna."]
["4.prevádzka"]
[]
["Sprevádzaný prístup"]
[null,"Celkem","Počet hodin za rok spotřebovaných za \"cost pool\" pro jednotlivé aktivity"]
["Názov aktivíty/ Cost pool",null,"CP1","CP2","CP3","CP4","CP5","CP6","CP7","CP8","CP9","CP10","CP11","CP12","CP 13","CP14","CP15"]
["A1",{"$f":"SUM(C10:Q10)","v":0}]
["A2",{"$f":"SUM(C11:Q11)","v":0}]
["A3",0]
["A4",0]
["A5",0]
["A6",0]
["A7",0]
["A8",0]
["A9",0]
["A10",0]
["počet hodin celkem",0,{"$f":"SUM(C10:C19)","v":0},{"$f":"SUM(D10:D19)","v":0},0,0,0,0,0,0,0,0,0,0,0,0,{"$f":"SUM(Q10:Q19)","v":0}]
["průměrný hodinový náklad CP",null,{"$f":"'ABC 01'!C8","v":{"$error":"#DIV/0!"}},{"$f":"'ABC 01'!D8","v":{"$error":"#DIV/0!"}},{"$f":"'ABC 01'!E8","v":{"$error":"#DIV/0!"}},{"$f":"'ABC 01'!F8","v":{"$error":"#DIV/0!"}},{"$f":"'ABC 01'!G8","v":{"$error":"#DIV/0!"}},{"$f":"'ABC 01'!H8","v":{"$error":"#DIV/0!"}},{"$f":"'ABC 01'!I8","v":{"$error":"#DIV/0!"}},{"$f":"'ABC 01'!J8","v":{"$error":"#DIV/0!"}},{"$f":"'ABC 01'!K8","v":{"$error":"#DIV/0!"}},{"$f":"'ABC 01'!L8","v":{"$error":"#DIV/0!"}},{"$f":"'ABC 01'!M8","v":{"$error":"#DIV/0!"}},{"$f":"'ABC 01'!N8","v":{"$error":"#DIV/0!"}},{"$f":"'ABC 01'!O8","v":{"$error":"#DIV/0!"}},{"$f":"'ABC 01'!P8","v":{"$error":"#DIV/0!"}},{"$f":"'ABC 01'!Q8","v":{"$error":"#DIV/0!"}}]
["náklad CP",{"$f":"SUM(C22:Q22)","v":{"$error":"#DIV/0!"}},{"$f":"C20*C21","v":{"$error":"#DIV/0!"}},{"$f":"D20*D21","v":{"$error":"#DIV/0!"}},{"$f":"E20*E21","v":{"$error":"#DIV/0!"}},{"$error":"#DIV/0!"},{"$error":"#DIV/0!"},{"$error":"#DIV/0!"},{"$error":"#DIV/0!"},{"$error":"#DIV/0!"},{"$error":"#DIV/0!"},{"$error":"#DIV/0!"},{"$error":"#DIV/0!"},{"$error":"#DIV/0!"},{"$error":"#DIV/0!"},{"$error":"#DIV/0!"},{"$error":"#DIV/0!"}]
["vážená hodinová sazba služby",{"$f":"B22/B20","v":{"$error":"#DIV/0!"}}]
[]
[]
[]
["Vydanie povolenia na vstup do špecifikovaných miest na 3 mesiace"]
[null,"Celkem","Počet hodin za rok spotřebovaných za \"cost pool\" pro jednotlivé aktivity"]
["Názov aktivíty/ Cost pool",null,"CP1","CP2","CP3","CP4","CP5","CP6","CP7","CP8","CP9","CP10","CP11","CP12","CP 13","CP14","CP15"]
["A1",{"$f":"SUM(C30:Q30)","v":0}]
["A2",{"$f":"SUM(C31:Q31)","v":0}]
["A3",0]
["A4",0]
["A5",0]
["A6",0]
["A7",0]
["A8",0]
["A9",0]
["A10",0]
["počet hodin celkem",0,{"$f":"SUM(C30:C39)","v":0},0,0,0,0,0,0,0,0,0,0,0,0,0,0]
["průměrný hodinový náklad CP",null,{"$f":"'ABC 01'!C8","v":{"$error":"#DIV/0!"}},{"$f":"'ABC 01'!D8","v":{"$error":"#DIV/0!"}},{"$f":"'ABC 01'!E8","v":{"$error":"#DIV/0!"}},{"$f":"'ABC 01'!F8","v":{"$error":"#DIV/0!"}},{"$f":"'ABC 01'!G8","v":{"$error":"#DIV/0!"}},{"$f":"'ABC 01'!H8","v":{"$error":"#DIV/0!"}},{"$f":"'ABC 01'!I8","v":{"$error":"#DIV/0!"}},{"$f":"'ABC 01'!J8","v":{"$error":"#DIV/0!"}},{"$f":"'ABC 01'!K8","v":{"$error":"#DIV/0!"}},{"$f":"'ABC 01'!L8","v":{"$error":"#DIV/0!"}},{"$f":"'ABC 01'!M8","v":{"$error":"#DIV/0!"}},{"$f":"'ABC 01'!N8","v":{"$error":"#DIV/0!"}},{"$f":"'ABC 01'!O8","v":{"$error":"#DIV/0!"}},{"$f":"'ABC 01'!P8","v":{"$error":"#DIV/0!"}},{"$f":"'ABC 01'!Q8","v":{"$error":"#DIV/0!"}}]
["náklad CP",{"$f":"SUM(C42:Q42)","v":{"$error":"#DIV/0!"}},{"$f":"C40*C41","v":{"$error":"#DIV/0!"}},{"$f":"D40*D41","v":{"$error":"#DIV/0!"}},{"$f":"E40*E41","v":{"$error":"#DIV/0!"}},{"$error":"#DIV/0!"},{"$error":"#DIV/0!"},{"$error":"#DIV/0!"},{"$error":"#DIV/0!"},{"$error":"#DIV/0!"},{"$error":"#DIV/0!"},{"$error":"#DIV/0!"},{"$error":"#DIV/0!"},{"$error":"#DIV/0!"},{"$error":"#DIV/0!"},{"$error":"#DIV/0!"},{"$error":"#DIV/0!"}]
["vážená hodinová sazba služby",{"$f":"B42/B40","v":{"$error":"#DIV/0!"}}]
[]
[]
[]
["Vydanie preukazu (do 31.12 b.r.)"]
[null,"Celkem","Počet hodin za rok spotřebovaných za \"cost pool\" pro jednotlivé aktivity"]
["Názov aktivíty/ Cost pool",null,"CP1","CP2","CP3","CP4","CP5","CP6","CP7","CP8","CP9","CP10","CP11","CP12","CP 13","CP14","CP15"]
["A1",{"$f":"SUM(C50:Q50)","v":0}]
["A2",{"$f":"SUM(C51:Q51)","v":0}]
["A3",0]
["A4",0]
["A5",0]
["A6",0]
["A7",0]
["A8",0]
["A9",0]
["A10",0]
["počet hodin celkem",0,{"$f":"SUM(C50:C59)","v":0},0,0,0,0,0,0,0,0,0,0,0,0,0,0]
["průměrný hodinový náklad CP",null,{"$f":"'ABC 01'!C8","v":{"$error":"#DIV/0!"}},{"$f":"'ABC 01'!D8","v":{"$error":"#DIV/0!"}},{"$f":"'ABC 01'!E8","v":{"$error":"#DIV/0!"}},{"$f":"'ABC 01'!F8","v":{"$error":"#DIV/0!"}},{"$f":"'ABC 01'!G8","v":{"$error":"#DIV/0!"}},{"$f":"'ABC 01'!H8","v":{"$error":"#DIV/0!"}},{"$f":"'ABC 01'!I8","v":{"$error":"#DIV/0!"}},{"$f":"'ABC 01'!J8","v":{"$error":"#DIV/0!"}},{"$f":"'ABC 01'!K8","v":{"$error":"#DIV/0!"}},{"$f":"'ABC 01'!L8","v":{"$error":"#DIV/0!"}},{"$f":"'ABC 01'!M8","v":{"$error":"#DIV/0!"}},{"$f":"'ABC 01'!N8","v":{"$error":"#DIV/0!"}},{"$f":"'ABC 01'!O8","v":{"$error":"#DIV/0!"}},{"$f":"'ABC 01'!P8","v":{"$error":"#DIV/0!"}},{"$f":"'ABC 01'!Q8","v":{"$error":"#DIV/0!"}}]
["náklad CP",{"$f":"SUM(C62:Q62)","v":{"$error":"#DIV/0!"}},{"$f":"C60*C61","v":{"$error":"#DIV/0!"}},{"$f":"D60*D61","v":{"$error":"#DIV/0!"}},{"$f":"E60*E61","v":{"$error":"#DIV/0!"}},{"$error":"#DIV/0!"},{"$error":"#DIV/0!"},{"$error":"#DIV/0!"},{"$error":"#DIV/0!"},{"$error":"#DIV/0!"},{"$error":"#DIV/0!"},{"$error":"#DIV/0!"},{"$error":"#DIV/0!"},{"$error":"#DIV/0!"},{"$error":"#DIV/0!"},{"$error":"#DIV/0!"},{"$error":"#DIV/0!"}]
["vážený hodinový náklad na službu",{"$f":"B62/B60","v":{"$error":"#DIV/0!"}}]
[]
[]
[]
["Prevádzkový test zariadenia"]
[null,"Celkem","Počet hodin za rok spotřebovaných za \"cost pool\" pro jednotlivé aktivity"]
["Názov aktivíty/ Cost pool",null,"CP1","CP2","CP3","CP4","CP5","CP6","CP7","CP8","CP9","CP10","CP11","CP12","CP 13","CP14","CP15"]
["A1",{"$f":"SUM(C70:Q70)","v":0}]
["A2",{"$f":"SUM(C71:Q71)","v":0}]
["A3",0]
["A4",0]
["A5",0]
["A6",0]
["A7",0]
["A8",0]
["A9",0]
["A10",0]
["počet hodin celkem",0,{"$f":"SUM(C70:C79)","v":0},0,0,0,0,0,0,0,0,0,0,0,0,0,0]
["průměrný hodinový náklad CP",null,{"$f":"'ABC 01'!C8","v":{"$error":"#DIV/0!"}},{"$f":"'ABC 01'!D8","v":{"$error":"#DIV/0!"}},{"$f":"'ABC 01'!E8","v":{"$error":"#DIV/0!"}},{"$f":"'ABC 01'!F8","v":{"$error":"#DIV/0!"}},{"$f":"'ABC 01'!G8","v":{"$error":"#DIV/0!"}},{"$f":"'ABC 01'!H8","v":{"$error":"#DIV/0!"}},{"$f":"'ABC 01'!I8","v":{"$error":"#DIV/0!"}},{"$f":"'ABC 01'!J8","v":{"$error":"#DIV/0!"}},{"$f":"'ABC 01'!K8","v":{"$error":"#DIV/0!"}},{"$f":"'ABC 01'!L8","v":{"$error":"#DIV/0!"}},{"$f":"'ABC 01'!M8","v":{"$error":"#DIV/0!"}},{"$f":"'ABC 01'!N8","v":{"$error":"#DIV/0!"}},{"$f":"'ABC 01'!O8","v":{"$error":"#DIV/0!"}},{"$f":"'ABC 01'!P8","v":{"$error":"#DIV/0!"}},{"$f":"'ABC 01'!Q8","v":{"$error":"#DIV/0!"}}]
["náklad CP",{"$f":"SUM(C82:Q82)","v":{"$error":"#DIV/0!"}},{"$f":"C80*C81","v":{"$error":"#DIV/0!"}},{"$f":"D80*D81","v":{"$error":"#DIV/0!"}},{"$f":"E80*E81","v":{"$error":"#DIV/0!"}},{"$error":"#DIV/0!"},{"$error":"#DIV/0!"},{"$error":"#DIV/0!"},{"$error":"#DIV/0!"},{"$error":"#DIV/0!"},{"$error":"#DIV/0!"},{"$error":"#DIV/0!"},{"$error":"#DIV/0!"},{"$error":"#DIV/0!"},{"$error":"#DIV/0!"},{"$error":"#DIV/0!"},{"$error":"#DIV/0!"}]
["vážený hodinový náklad na službu",{"$f":"B82/B80","v":{"$error":"#DIV/0!"}}]
[]
[]
[]
["Administrativné posúdenie zariadenia"]
[null,"Celkem","Počet hodin za rok spotřebovaných za \"cost pool\" pro jednotlivé aktivity"]
["Názov aktivíty/ Cost pool",null,"CP1","CP2","CP3","CP4","CP5","CP6","CP7","CP8","CP9","CP10","CP11","CP12","CP 13","CP14","CP15"]
["A1",{"$f":"SUM(C90:Q90)","v":0}]
["A2",0]
["A3",0]
["A4",0]
["A5",0]
["A6",0]
["A7",0]
["A8",0]
["A9",0]
["A10",0]
["počet hodin celkem",0,{"$f":"SUM(C90:C99)","v":0},0,0,0,0,0,0,0,0,0,0,0,0,0,0]
["průměrný hodinový náklad CP",null,{"$f":"'ABC 01'!C8","v":{"$error":"#DIV/0!"}},{"$f":"'ABC 01'!D8","v":{"$error":"#DIV/0!"}},{"$f":"'ABC 01'!E8","v":{"$error":"#DIV/0!"}},{"$f":"'ABC 01'!F8","v":{"$error":"#DIV/0!"}},{"$f":"'ABC 01'!G8","v":{"$error":"#DIV/0!"}},{"$f":"'ABC 01'!H8","v":{"$error":"#DIV/0!"}},{"$f":"'ABC 01'!I8","v":{"$error":"#DIV/0!"}},{"$f":"'ABC 01'!J8","v":{"$error":"#DIV/0!"}},{"$f":"'ABC 01'!K8","v":{"$error":"#DIV/0!"}},{"$f":"'ABC 01'!L8","v":{"$error":"#DIV/0!"}},{"$f":"'ABC 01'!M8","v":{"$error":"#DIV/0!"}},{"$f":"'ABC 01'!N8","v":{"$error":"#DIV/0!"}},{"$f":"'ABC 01'!O8","v":{"$error":"#DIV/0!"}},{"$f":"'ABC 01'!P8","v":{"$error":"#DIV/0!"}},{"$f":"'ABC 01'!Q8","v":{"$error":"#DIV/0!"}}]
["náklad CP",{"$f":"SUM(C102:Q102)","v":{"$error":"#DIV/0!"}},{"$f":"C100*C101","v":{"$error":"#DIV/0!"}},{"$f":"D100*D101","v":{"$error":"#DIV/0!"}},{"$f":"E100*E101","v":{"$error":"#DIV/0!"}},{"$error":"#DIV/0!"},{"$error":"#DIV/0!"},{"$error":"#DIV/0!"},{"$error":"#DIV/0!"},{"$error":"#DIV/0!"},{"$error":"#DIV/0!"},{"$error":"#DIV/0!"},{"$error":"#DIV/0!"},{"$error":"#DIV/0!"},{"$error":"#DIV/0!"},{"$error":"#DIV/0!"},{"$error":"#DIV/0!"}]
["vážený hodinový náklad na službu",{"$f":"B102/B100","v":{"$error":"#DIV/0!"}}]

{"sheet":"Periodické služby","index":10,"n_rows":16,"n_cols":5,"rows_kept":16,"cut":false,"hidden":false,"merged":[]}
["Náklady na kolokaci"]
["Vstupní údaje - opakujúce se (pravidelné) služby - doplňujúce údaje "]
["Vyplňuje se pouze je-li text řádku zviditelněn"]
["1. Údaje o kabelových roštech "]
[null,"jednotka","rok T-1"," rok T","rok T+1"]
["průměrná šířka roštů (v m)","m",0.1,0.1,0.1]
["průměrný počet kabelů v roštu (v ks)","ks",3,3,3]
["využití kapacity roštu (v %)","%",0.75,0.75,0.75]
[]
[]
["2. Údaje o sběrných okruzích"]
["Vnější kabeláž- zábor pozemku"]
["průměrná  šířka výkopů (v m)","m"]
["celková délka výkopů (v m)","m"]
["Radioreleové spoje-plochy pre antény"]
["celková plocha potřebná pro instalaci anténních systémů (m2)","počet"]

{"sheet":"Prvky kolokace","index":11,"n_rows":53,"n_cols":9,"rows_kept":53,"cut":false,"hidden":false,"merged":[[3,0,3,1],[8,0,8,7],[5,2,5,3],[6,2,6,3]]}
["Náklady na kolokáciu"]
["Prvky kolokácie"]
["1. Ponuka odpisovej metódy"]
["Vyberte najvhodnějšu odpisovú metódu z ponuky 1 až 5 pre každý prvok kolokácie a  poradové číslo vložte do příslušného riadku stlpca G ",null,"1                              lineárne odpisy ","2                            upravené lineárne odpisy","3                           ekonomické odpisy","4                          anuita","5                upravená anuita  (tilted annuity)"]
["2. Investície",null,null,null,null,null,null,null,1]
[null,null,"Pořizovací jednotková cena prvku (Euro) údaj převzat z listu Investice. Nevyplňovat!",null,"Životnost prvku (roky)","Trend cenového vývoje (%)","Odpisová metoda ","Koeficient provozních nákladů"]
["Investície do kolokačného miesta","m2",{"$f":"Investice!F18","v":{"$error":"#DIV/0!"}},null,null,null,null,null,1]
["3.  Prvky kolokácie"]
["Vypl'ňajú sa len riadky popísané výrazným (čiernym) písmom"]
[null,"Jednotka","Pořizovací jednotková cena prvku (Euro)","Náklady na instalaci (% z pořizovací ceny)","Životnost prvku (roky)","Trend cenového vývoje (%)","Odpisová metoda ","Koeficient provozních nákladů"]
["Káble, prislušenství, káblové rošty a prostupy"]
["pásik LSA  na HR","1ks"]
["rozdelovač (splitter)","1ks"]
["Spojovací kábly vnútorné (fyzická kolokácia)","počet párů/vláken v kabelu"]
["stíněný vnútorný spojovací kábel ",{"$f":"Předpoklady!I13","v":0}]
["nestíněný vnútorný spojovací kábel",{"$f":"Předpoklady!I14","v":0}]
[]
["Vonkajší spojovacie kábly (vzdialená kolokácia)"]
["vonkajší spojovací kábel metalický pro vnútorné prostredie ",{"$f":"Předpoklady!I15","v":0}]
["vonkajší spojovací kábel metalický stíněný pro vnútorné prostredie ",{"$f":"Předpoklady!I16","v":0},{"$f":"C19","v":0}]
["vonkajší spojovací kábel metalický stíněný pro vonkajšie prostredie ",{"$f":"Předpoklady!I17","v":0},{"$f":"C20","v":0}]
["vonkajší spojovací kábel metalický pro vonkajšie prostredie ",{"$f":"Předpoklady!I18","v":0},{"$f":"C21","v":0}]
[]
["Volitelné prvky:"]
["Spojovací okruhy:","počet párů/vláken v kabelu"]
["stíněný vnútorný spojovací kábel metalický 2Mbit/s (vč. DR) ",null,null,null,null,null,null,null,0]
["optický vnútorný spojovací kábel (vč.OR)-pár vláken",null,null,null,null,null,null,null,0]
[]
["Kábly sběrného okruhu","počet párů/vláken v kabelu"]
["kábel sběrného okruhu optický",null,null,null,null,null,null,null,0]
["kábel sběrného okruhu metalický",null,null,null,null,null,null,null,0]
[]
["Káblové rošty a prostupy","Jednotka"]
[" káblový rošt  ST","1 bm",null,null,null,null,null,null,0]
["prostup do budovy","1 prostup",null,{"$f":"D34","v":0},30,{"$f":"F34","v":0},{"$f":"G34","v":0},0.12,0]
[]
["Dalšie súvisiace zariadenia"]
["napájanie 48 V","jednotka",null,null,null,null,null,null,0]
["napájací kabel 220 V","1 kábel",null,null,null,null,null,null,0]
["UPS (zdroj nepretržitého napájenia)","1 UPS",null,null,null,null,null,null,0]
[]
[]
["4. Dalšie slúžby a prenájmy"]
[]
["pre umiestenie roštu oprávneného poskytovateľa","1 bm","N/A",null,null,null,null,null,1]
[null,null,null,null,null,null,null,null,1]
[null,null,null,null,null,null,null,null,1]
[null,null,null,null,null,null,null,null,1]
[null,null,null,null,null,null,null,null,1]
[null,null,null,null,null,null,null,null,1]
[null,null,null,null,null,null,null,null,1]
[null,null,null,null,null,null,null,null,1]
[null,null,null,null,null,null,null,null,1]

{"sheet":"Náklady jednorázové","index":12,"n_rows":43,"n_cols":10,"rows_kept":43,"cut":false,"hidden":false,"merged":[]}
["Náklady na kolokaci"]
["Náklady na jednorázové služby"]
["Výpočtové tabulky-nevyplňují se !"]
[]
[]
[]
[]
["1.prípravné práce"]
[null,"jednotka","celkový počet odpracova-ných hodin za rok","průměrný hodinový náklad (bez WACC)","rozsah služeb (počet jednotek za rok)","přímé náklady na jednotku","náklady včetně WACC","náklady včetně režie","vedlejší náklady","Náklad na službu celkem"]
["predbežné šetrenie",{"$f":"Předpoklady!B6","v":"počet"},{"$f":"'Jednorázové služby'!B6","v":0},{"$f":"'Jednorázové služby'!C6","v":0},{"$f":"Předpoklady!D6","v":0},0,{"$f":"F10*(1+Předpoklady!$D$56)","v":0},{"$f":"G10*(1+Předpoklady!$D$57)","v":0},null,{"$f":"H10+I10","v":0}]
["podrobné šetrenie",{"$f":"Předpoklady!B7","v":"počet"},{"$f":"'Jednorázové služby'!B7","v":0},{"$f":"'Jednorázové služby'!C7","v":0},{"$f":"Předpoklady!D7","v":0},{"$f":"C11*D11/E11","v":{"$error":"#DIV/0!"}},{"$f":"F11*(1+Předpoklady!$D$56)","v":{"$error":"#DIV/0!"}},{"$f":"G11*(1+Předpoklady!$D$57)","v":{"$error":"#DIV/0!"}},null,{"$f":"H11+I11","v":{"$error":"#DIV/0!"}}]
["obhlídka místa kolokácie",{"$f":"Předpoklady!B8","v":"počet"},{"$f":"'Jednorázové služby'!B8","v":0},{"$f":"'Jednorázové služby'!C8","v":0},{"$f":"Předpoklady!D8","v":0},{"$f":"C12*D12/E12","v":{"$error":"#DIV/0!"}},{"$f":"F12*(1+Předpoklady!$D$56)","v":{"$error":"#DIV/0!"}},{"$f":"G12*(1+Předpoklady!$D$57)","v":{"$error":"#DIV/0!"}},null,{"$f":"H12+I12","v":{"$error":"#DIV/0!"}}]
["zmena požiadavky na kolokáciu",{"$f":"Předpoklady!B9","v":"počet"},{"$f":"'Jednorázové služby'!B9","v":0},{"$f":"'Jednorázové služby'!C9","v":0},{"$f":"Předpoklady!D9","v":0},0,{"$f":"F13*(1+Předpoklady!$D$56)","v":0},{"$f":"G13*(1+Předpoklady!$D$57)","v":0},null,{"$f":"H13+I13","v":0}]
[]
["2. realizácia"]
[]
["zriadenie kolokačného priestoru",{"$f":"Předpoklady!B17","v":"počet"},{"$f":"'Jednorázové služby'!B13","v":0},{"$f":"'Jednorázové služby'!C13","v":0},{"$f":"Předpoklady!D18","v":0},{"$f":"C17*D17/E17","v":{"$error":"#DIV/0!"}},{"$f":"F17*(1+Předpoklady!$D$56)","v":{"$error":"#DIV/0!"}},{"$f":"G17*(1+Předpoklady!$D$57)","v":{"$error":"#DIV/0!"}},null,{"$f":"H17+I17","v":{"$error":"#DIV/0!"}}]
["zriadenie kolokačného miesta",{"$f":"Předpoklady!B21","v":"počet"},{"$f":"'Jednorázové služby'!B14","v":0},{"$f":"'Jednorázové služby'!C14","v":0},{"$f":"Předpoklady!D22","v":0},{"$f":"C18*D18/E18","v":{"$error":"#DIV/0!"}},{"$f":"F18*(1+Předpoklady!$D$56)","v":{"$error":"#DIV/0!"}},{"$f":"G18*(1+Předpoklady!$D$57)","v":{"$error":"#DIV/0!"}},null,{"$f":"H18+I18","v":{"$error":"#DIV/0!"}}]
["identifikácia miesta prístupu",{"$f":"Předpoklady!B10","v":"počet"},{"$f":"'Jednorázové služby'!B15","v":0},{"$f":"'Jednorázové služby'!C15","v":0},{"$f":"Předpoklady!D10","v":0},0,{"$f":"F19*(1+Předpoklady!$D$56)","v":0},{"$f":"G19*(1+Předpoklady!$D$57)","v":0},null,{"$f":"H19+I19","v":0}]
[]
[]
["3.inštalacia súvisiacich zariadení"]
[]
["inštalácia suvisiacich zariadení (bez rozbočovača)","počet",{"$f":"'Jednorázové služby'!B20","v":0},{"$f":"'Jednorázové služby'!C20","v":0},{"$f":"Předpoklady!D32","v":0},{"$f":"C24*D24/E24","v":{"$error":"#DIV/0!"}},{"$f":"F24*(1+Předpoklady!$D$56)","v":{"$error":"#DIV/0!"}},{"$f":"G24*(1+Předpoklady!$D$57)","v":{"$error":"#DIV/0!"}},null,{"$f":"H24+I24","v":{"$error":"#DIV/0!"}}]
["instalace vnitřních spojovacích kabelů a pásků na HR",null,{"$f":"'Jednorázové služby'!B21","v":0},{"$f":"'Jednorázové služby'!C21","v":0},{"$f":"Předpoklady!D34","v":0},{"$f":"C25*D25/E25","v":{"$error":"#DIV/0!"}},{"$f":"F25*(1+Předpoklady!D57)","v":{"$error":"#DIV/0!"}},{"$f":"G25*(1+Předpoklady!$D$57)","v":{"$error":"#DIV/0!"}},null,{"$f":"H25+I25","v":{"$error":"#DIV/0!"}}]
["instalace vnějších spojovacích kabelů a pásků na HR ",null,{"$f":"'Jednorázové služby'!B22","v":0},{"$f":"'Jednorázové služby'!C22","v":0},{"$f":"Předpoklady!D35","v":0},0,{"$f":"F26*(1+Předpoklady!D58)","v":0},{"$f":"G26*(1+Předpoklady!$D$57)","v":0},null,{"$f":"H26+I26","v":0}]
["inštalácia rozbočovača",null,{"$f":"'Jednorázové služby'!B23","v":0},{"$f":"'Jednorázové služby'!C23","v":0},{"$f":"Předpoklady!D36","v":0},0,{"$f":"F27*(1+Předpoklady!D59)","v":0},{"$f":"G27*(1+Předpoklady!$D$57)","v":0},null,{"$f":"H27+I27","v":0}]
[]
["4.prevádzka"]
[]
["sprevádzaný prístup","počet",{"$f":"'Jednorázové služby'!B27","v":0},{"$f":"'Jednorázové služby'!C27","v":0},{"$f":"Předpoklady!D11","v":0},{"$f":"C31*D31/E31","v":{"$error":"#DIV/0!"}},{"$f":"F31*(1+Předpoklady!$D$56)","v":{"$error":"#DIV/0!"}},{"$f":"G31*(1+Předpoklady!$D$57)","v":{"$error":"#DIV/0!"}},null,{"$f":"H31+I31","v":{"$error":"#DIV/0!"}}]
["vydanie povolenia na vstup do špecifikovaných miest na 3 mesiace","počet",{"$f":"'Jednorázové služby'!B28","v":0},{"$f":"'Jednorázové služby'!C28","v":0},{"$f":"Předpoklady!D12","v":0},0,{"$f":"F32*(1+Předpoklady!$D$56)","v":0},{"$f":"G32*(1+Předpoklady!$D$57)","v":0},null,{"$f":"H32+I32","v":0}]
["vydanie preukazu (do 31.12 b.r.)","počet",{"$f":"'Jednorázové služby'!B29","v":0},{"$f":"'Jednorázové služby'!C29","v":0},{"$f":"Předpoklady!D13","v":0},0,{"$f":"F33*(1+Předpoklady!$D$56)","v":0},{"$f":"G33*(1+Předpoklady!$D$57)","v":0},{"$f":"Předpoklady!D63","v":0},{"$f":"H33+I33","v":0}]
["prevádzkový test zariadenia","počet",{"$f":"'Jednorázové služby'!B30","v":0},{"$f":"'Jednorázové služby'!C30","v":0},{"$f":"Předpoklady!D14","v":0},0,{"$f":"F34*(1+Předpoklady!$D$56)","v":0},{"$f":"G34*(1+Předpoklady!$D$57)","v":0},null,{"$f":"H34+I34","v":0}]
["administrativné posúdenie zariadenia","počet",{"$f":"'Jednorázové služby'!B31","v":0},{"$f":"'Jednorázové služby'!C31","v":0},{"$f":"Předpoklady!D15","v":0},0,{"$f":"F35*(1+Předpoklady!$D$56)","v":0},{"$f":"G35*(1+Předpoklady!$D$57)","v":0},null,{"$f":"H35+I35","v":0}]
[]
[]
["5. Inštalácia volitelných súvisiacích zariadení"]
[]
["instalace napájení 48 a 230V",null,{"$f":"'Jednorázové služby'!B35","v":0},{"$f":"'Jednorázové služby'!C35","v":0},{"$f":"Předpoklady!D38","v":0},0,{"$f":"F40*(1+Předpoklady!$D$56)","v":0},{"$f":"G40*(1+Předpoklady!$D$57)","v":0},null,"N/A"]
["instalace UPS",null,{"$f":"'Jednorázové služby'!B36","v":0},{"$f":"'Jednorázové služby'!C36","v":0},{"$f":"Předpoklady!D39","v":0},0,{"$f":"F41*(1+Předpoklady!$D$56)","v":0},{"$f":"G41*(1+Předpoklady!$D$57)","v":0},null,"N/A"]
["instalace optického sběrného okruhu",null,{"$f":"'Jednorázové služby'!B37","v":0},{"$f":"'Jednorázové služby'!C37","v":0},{"$f":"Předpoklady!D40","v":0},0,{"$f":"F42*(1+Předpoklady!$D$56)","v":0},{"$f":"G42*(1+Předpoklady!$D$57)","v":0},null,"N/A"]
["instalace metalického sběrné okruhu",null,{"$f":"'Jednorázové služby'!B38","v":0},{"$f":"'Jednorázové služby'!C38","v":0},{"$f":"Předpoklady!D41","v":0},0,{"$f":"F43*(1+Předpoklady!$D$56)","v":0},{"$f":"G43*(1+Předpoklady!$D$57)","v":0},null,"N/A"]

{"sheet":"Investice","index":13,"n_rows":87,"n_cols":12,"rows_kept":87,"cut":false,"hidden":false,"merged":[[34,0,34,6],[29,0,29,6]]}
["p"]
["Investície do prvkov kolokácie "]
["Výpočtové tabulky-nevyplňují se !"]
["Výpočet investicií do kolokačného priestoru a kolokačného miesta"]
[]
[null,"jednotka","rok T-1","současný rok T","rok T+1","průměr současné hodnoty"]
["průměrná plocha kolokačného prostoru","m2",0,{"$f":"(Předpoklady!D19+Předpoklady!D20)/(Předpoklady!D17+Předpoklady!D18)","v":{"$error":"#DIV/0!"}},0,{"$f":"(Předpoklady!C19+Předpoklady!C20+Předpoklady!D20+Předpoklady!E20)/(Předpoklady!C17+Předpoklady!C18+Předpoklady!D18+Předpoklady!E18)","v":{"$error":"#DIV/0!"}},null,"Rekapitulace z listu předpoklady","T-1","T","T+1","součet"]
["průměrná plocha kolokačného miesta","m2",0,{"$f":"(Předpoklady!D24+Předpoklady!D23)/(Předpoklady!D22+Předpoklady!D21)","v":{"$error":"#DIV/0!"}},0,{"$f":"(C8*C10+D8*D10+E8*E10)/(C10+D10+E10)","v":{"$error":"#DIV/0!"}},null,"počet kolokačních prostorů",{"$f":"Předpoklady!C17+Předpoklady!C18","v":0},{"$f":"Předpoklady!D17+Předpoklady!D18","v":0},{"$f":"Předpoklady!E17+Předpoklady!E18","v":0},{"$f":"SUM(I8:K8)","v":0}]
["komunikačné a spoločné plochy v %","%",{"$f":"Předpoklady!I6","v":0},{"$f":"Předpoklady!I6","v":0},{"$f":"Předpoklady!I6","v":0},null,null,"počet kolokačních míst",{"$f":"Předpoklady!C21+Předpoklady!C22","v":0},{"$f":"Předpoklady!D21+Předpoklady!D22","v":0},{"$f":"Předpoklady!E21+Předpoklady!E22","v":0},{"$f":"SUM(I9:K9)","v":0}]
["maximálný počet kolokačných miest v kolokačnom prostoru","počet",0,{"$f":"ROUNDDOWN((D7*(1-D9)/D8),0)","v":{"$error":"#DIV/0!"}},0,null,null,"celková plocha novo zriadených kolokačných prostorov",{"$f":"Předpoklady!C20","v":0},{"$f":"Předpoklady!D20","v":0},{"$f":"Předpoklady!E20","v":0},{"$f":"SUM(I10:K10)","v":0}]
["aktuálný počet kolokačných miest v kolokačnom priestore","počet",0,{"$f":"ROUNDDOWN((Předpoklady!D22+Předpoklady!D21)/(Předpoklady!D18+Předpoklady!D17),0)","v":{"$error":"#DIV/0!"}},0]
["investicie na m2 kolokačného prostoru","tis.€",0,{"$f":"Předpoklady!D52/Předpoklady!D20","v":{"$error":"#DIV/0!"}},0,{"$f":"(C12*(1/(1+Předpoklady!$D$56)^-1)*C7+D12*(1/(1+Předpoklady!$D$56)^0)*D7+E12*(1/(1+Předpoklady!$D$56)^1)*E7)/(C7+D7+E7)","v":{"$error":"#DIV/0!"}}]
["investice do průměrného kolokačního prostoru","tis.€",{"$f":"C12*C7","v":0},{"$f":"D12*D7","v":{"$error":"#DIV/0!"}},{"$f":"E12*E7","v":0}]
["investicie na 1 kolokačné miesto","tis.€",0,{"$f":"D13/D10","v":{"$error":"#DIV/0!"}},0]
["poměr aktuálné a maximální kapacity kolokačného prostoru","%",0,{"$f":"D11/D10","v":{"$error":"#DIV/0!"}},0]
["zohlednění nevyužití kapacity v investici na jedno kolokačné miesto","tis.€",0,{"$f":"D14/D15","v":{"$error":"#DIV/0!"}},0]
["současná hodnota investice na jedno kolokačné miesto","tis.€",{"$f":"C14*(1/(1+Předpoklady!$D$56)^-1)","v":0},{"$f":"D14*(1/(1+Předpoklady!$D$56)^0)","v":{"$error":"#DIV/0!"}},{"$f":"E14*(1/(1+Předpoklady!$D$56)^1)","v":0}]
["vážený průměr současné hodnoty investice na jedno kolokačné miesto","tis.€",null,null,null,{"$f":"(C17*C10+D17*D10+E17*E10)/(C10+D10+E10)","v":{"$error":"#DIV/0!"}}]
[]
[]
[]
["Výpočet investícií na kabeláž"]
[]
[null,"jednotka","kapacita kabelu v počtu párů","rok T-1","současný rok T","rok T+1","průměr současné hodnoty"]
["celkový počet párů","pár","N/A",{"$f":"Předpoklady!C25+Předpoklady!C26","v":0},{"$f":"Předpoklady!D25+Předpoklady!D26","v":0},{"$f":"Předpoklady!E25+Předpoklady!E26","v":0},null,"Rekapitulace z listu Předpoklady"]
["celkový počet spojovacích kabelů ","počet",{"$f":"Předpoklady!I12","v":0},{"$f":"D25/$C$26","v":{"$error":"#DIV/0!"}},{"$f":"E25/$C$26","v":{"$error":"#DIV/0!"}},{"$f":"F25/$C$26","v":{"$error":"#DIV/0!"}},null,"základní počet párů připojených k PR",{"$f":"Předpoklady!I12","v":0}]
["počet kabelů na 1 kolokačné miesto","počet","N/A",{"$f":"D26/(Předpoklady!C17+Předpoklady!C18)","v":{"$error":"#DIV/0!"}},{"$f":"E26/(Předpoklady!D17+Předpoklady!D18)","v":{"$error":"#DIV/0!"}},{"$f":"F26/(Předpoklady!E17+Předpoklady!E18)","v":{"$error":"#DIV/0!"}},null,"stíněný vnútorný spojovací kábel ",{"$f":"Předpoklady!I13","v":0}]
["průměrná délka kabelu fyzická kolokace","m","N/A",{"$f":"Předpoklady!C28","v":0},{"$f":"Předpoklady!D28","v":0},{"$f":"Předpoklady!E28","v":0},null,"nestíněný vnútorný spojovací kábel  ",{"$f":"Předpoklady!I14","v":0}]
["průměrná délka kabelu vzdálená kolokace","m","N/A",{"$f":"Předpoklady!C29","v":0},{"$f":"Předpoklady!D29","v":0},{"$f":"Předpoklady!E29","v":0},null,"vonkajší spojovací kábel  pro vnútorné prostredie ",{"$f":"Předpoklady!I15","v":0}]
["Náklady na typy kabeláže pro fyzickou kolokaci",null,null,null,null,null,null,"vonkajší spojovací kábel  stíněný pro vnútorné prostredie ",{"$f":"Předpoklady!I16","v":0}]
["náklad na  stíněné kabely HR-PR  včetně pásku na HR a PR ","€",{"$f":"Předpoklady!I12","v":0},{"$f":"D28*'Prvky kolokace'!$C$15*Předpoklady!$I$12/Předpoklady!$I$13+2*'Prvky kolokace'!$C$12*Předpoklady!$I$12/Předpoklady!$I$11","v":{"$error":"#DIV/0!"}},{"$f":"E28*'Prvky kolokace'!$C$15*Předpoklady!$I$12/Předpoklady!$I$13+2*'Prvky kolokace'!$C$12*Předpoklady!$I$12/Předpoklady!$I$11","v":{"$error":"#DIV/0!"}},{"$f":"F28*'Prvky kolokace'!$C$15*Předpoklady!$I$12/Předpoklady!$I$13+2*'Prvky kolokace'!$C$12*Předpoklady!$I$12/Předpoklady!$I$11","v":{"$error":"#DIV/0!"}},null,"vonkajší spojovací kábel  stíněný pro vonkajšie prostredie ",{"$f":"Předpoklady!I17","v":0}]
["současná hodnota nákladu na  stíněné kabely HR-PR včetně pásku na HR a PR ","€",{"$f":"Předpoklady!I12","v":0},{"$f":"D31*(1/(1+Předpoklady!$D$56)^-1)","v":{"$error":"#DIV/0!"}},{"$f":"E31*(1/(1+Předpoklady!$D$56)^0)","v":{"$error":"#DIV/0!"}},{"$f":"F31*(1/(1+Předpoklady!$D$56)^1)","v":{"$error":"#DIV/0!"}},{"$f":"(D32*D28+E32*E28+F32*F28)/(D28+E28+F28)","v":{"$error":"#DIV/0!"}},"vonkajší spojovací kábel pro vonkajšie prostredie ",{"$f":"Předpoklady!I18","v":0}]
["náklad na  nestíněné kabely HR-PR  včetně pásku na HRaPR ","€",{"$f":"Předpoklady!I12","v":0},0,0,0]
["současná hodnota nákladu na  stíněné kabely HR-PR včetně pásku na HRaPR ","€",{"$f":"Předpoklady!I12","v":0},{"$f":"D33*(1/(1+Předpoklady!$D$56)^-1)","v":0},{"$f":"E33*(1/(1+Předpoklady!$D$56)^0)","v":0},{"$f":"F33*(1/(1+Předpoklady!$D$56)^1)","v":0},{"$f":"(D34*D28+E34*E28+F34*F28)/(D28+E28+F28)","v":{"$error":"#DIV/0!"}}]
["Náklady na typy kabeláže pro vdálenou kolokaci"]
["vonkajší spojovací kábel metalický pro vnútorné prostredie včetne pasikov na HRaPR","€",{"$f":"Předpoklady!I12","v":0},0,0,0]
["současná hodnota nákladu vonkajší spojovací kábel metalický pro vnútorné prostredie včetne pasikov na HR a PR","€",{"$f":"Předpoklady!I12","v":0},{"$f":"D36*(1/(1+Předpoklady!$D$56)^-1)","v":0},{"$f":"E36*(1/(1+Předpoklady!$D$56)^0)","v":0},{"$f":"F36*(1/(1+Předpoklady!$D$56)^1)","v":0},0]
["vonkajší spojovací kábel metalický stíněný pro vnútorné prostredie vč. pásikov na HR a PR","€",{"$f":"Předpoklady!I12","v":0},0,0,0]
["současná hodnota nákladu vonkajší spojovací kábel metalický pro vnútorné prostredie včetne pasikov na HR a PR","€",{"$f":"Předpoklady!I12","v":0},{"$f":"D38*(1/(1+Předpoklady!$D$56)^-1)","v":0},{"$f":"E38*(1/(1+Předpoklady!$D$56)^0)","v":0},{"$f":"F38*(1/(1+Předpoklady!$D$56)^1)","v":0},0]
["náklad na  stíněný kabel  včetně pásku na HR a PR  ","€",{"$f":"Předpoklady!I12","v":0},0,0,0]
["současná hodnota nákladu na stíněný kabel včetně pásku na Hra PR","€",{"$f":"Předpoklady!I12","v":0},{"$f":"D40*(1/(1+Předpoklady!$D$56)^-1)","v":0},{"$f":"E40*(1/(1+Předpoklady!$D$56)^0)","v":0},{"$f":"F40*(1/(1+Předpoklady!$D$56)^1)","v":0},0]
["vonkajší spojovací kábel metalický pro vonkajšie prostredie vč. pásikov na HR a PR","€",{"$f":"Předpoklady!I14","v":0},0,0,0]
["současná hodnota nákladu na vonkajší spojovací kábel metalický pro vonkajšie prostredie vč. pásikov na HR ","€",{"$f":"Předpoklady!I14","v":0},{"$f":"D42*(1/(1+Předpoklady!$D$56)^-1)","v":0},{"$f":"E42*(1/(1+Předpoklady!$D$56)^0)","v":0},{"$f":"F42*(1/(1+Předpoklady!$D$56)^1)","v":0},0]
[]
["Výpočet investic na kabely (volitelné)"]
[]
["Spojovací okruhy:","jednotka","počet párů/vláken v kabelu","cena za kabel","cena za jednotku"]
["stíněný vnútorný spojovací kábel metalický 2Mbit/s (vč. DR) ","2 páry",{"$f":"'Prvky kolokace'!B26","v":0},{"$f":"'Prvky kolokace'!C26","v":0},0]
["optický vnútorný spojovací kábel (vč.OR)-pár vláken","pár vláken",{"$f":"'Prvky kolokace'!B27","v":0},{"$f":"'Prvky kolokace'!C27","v":0},0]
[]
["Kábly sběrného okruhu"]
["kábel sběrného okruhu optický","pár vláken",{"$f":"'Prvky kolokace'!B30","v":0},{"$f":"'Prvky kolokace'!C30","v":0},0]
["kábel sběrného okruhu metalický","2 páry",{"$f":"'Prvky kolokace'!B31","v":0},{"$f":"'Prvky kolokace'!C31","v":0},0]
[]
["Výpočet investic na nosné konstrukce kabelů (rošty, prostupy)"]
[]
[null,"jednotka","rok T-1","současný rok T","rok T+1","průměr současné hodnoty"]
["maximální počet kabelů v roštu","počet",{"$f":"ROUNDDOWN('Periodické služby'!C7/'Periodické služby'!C8,0)","v":4},{"$f":"ROUNDDOWN('Periodické služby'!D7/'Periodické služby'!D8,0)","v":4},{"$f":"ROUNDDOWN('Periodické služby'!E7/'Periodické služby'!E8,0)","v":4}]
["plocha roštu na 1 bm","m2",{"$f":"'Periodické služby'!C6*1","v":0.1},{"$f":"'Periodické služby'!D6*1","v":0.1},{"$f":"'Periodické služby'!E6*1","v":0.1}]
["inv. náklad na  1 m kabelu v roštu","€/m",{"$f":"'Prvky kolokace'!$C$34/C58","v":0},{"$f":"'Prvky kolokace'!$C$34/D58","v":0},{"$f":"'Prvky kolokace'!$C$34/E58","v":0}]
["současná hodnota 1 m kabelu v roštu","€/m",{"$f":"C60*(1/(1+Předpoklady!$D$56)^-1)","v":0},{"$f":"D60*(1/(1+Předpoklady!$D$56)^0)","v":0},{"$f":"E60*(1/(1+Předpoklady!$D$56)^1)","v":0},{"$f":"(C61*C58+D61*D58+E60*E58)/(C58+D58+E58)","v":0}]
["náklad ceny plochy na 1m kabelu","€/m",{"$f":"C59*Předpoklady!$D$73","v":0},{"$f":"D59*Předpoklady!$D$73","v":0},{"$f":"E59*Předpoklady!$D$73","v":0}]
["současná hodnota plochy na 1m kabelu","€/m",{"$f":"C62*(1/(1+Předpoklady!$D$56)^-1)","v":0},{"$f":"D62*(1/(1+Předpoklady!$D$56)^0)","v":0},{"$f":"E62*(1/(1+Předpoklady!$D$56)^1)","v":0},{"$f":"(C63*C58+D63*D58+E62*E58)/(C58+D58+E58)","v":0}]
["maximální počet kabelů v prostupu","počet",{"$f":"C58","v":4},{"$f":"D58","v":4},{"$f":"E58","v":4}]
["inv. náklad prostupu pro  1 kabel ","€/kabel",{"$f":"'Prvky kolokace'!$C$35/Investice!C64","v":0},{"$f":"'Prvky kolokace'!$C$35/Investice!D64","v":0},{"$f":"'Prvky kolokace'!$C$35/Investice!E64","v":0}]
["současná hodnota prostupu pro 1 kabel","€/kabel",{"$f":"C65*(1/(1+Předpoklady!$D$56)^-1)","v":0},{"$f":"D65*(1/(1+Předpoklady!$D$56)^0)","v":0},{"$f":"E65*(1/(1+Předpoklady!$D$56)^1)","v":0},{"$f":"(C66*C64+D66*D64+E65*E64)/(C64+D64+E64)","v":0}]
[]
[]
[]
[]
[]
[]
["Výpočet investícií na sběrné okruhy"]
[]
[null,"jednotka","rok T-1","současný rok T","rok T+1","průměr současné hodnoty"]
[]
["priestor pre umiestenie antény "]
["počet radioreléových sberných okruhov (stav k 31.12)","počet",{"$f":"Předpoklady!C31","v":0},{"$f":"Předpoklady!D31","v":0},{"$f":"Předpoklady!E31","v":0}]
["celková plocha potřebná pro instalaci anténních systémů (m2)","m2",{"$f":"'Periodické služby'!C16","v":0},{"$f":"'Periodické služby'!D16","v":0},{"$f":"'Periodické služby'!E16","v":0}]
["plocha pro jeden anténní systém","m2",0,0,0]
["současná hodnota",null,{"$f":"C80*(1/(1+Předpoklady!$D$56)^-1)","v":0},{"$f":"D80*(1/(1+Předpoklady!$D$56)^0)","v":0},{"$f":"E80*(1/(1+Předpoklady!$D$56)^1)","v":0},0]
[]
["priestor pre umiestenie kábla "]
["počet kabelových sberných okruhov (stav k 31.12)","počet",{"$f":"Předpoklady!C30","v":0},{"$f":"Předpoklady!D30","v":0},{"$f":"Předpoklady!E30","v":0}]
["celková plocha pozemku zabraného výkopy","m2",{"$f":"'Periodické služby'!C13*'Periodické služby'!C14","v":0},{"$f":"'Periodické služby'!D13*'Periodické služby'!D14","v":0},{"$f":"'Periodické služby'!E13*'Periodické služby'!E14","v":0}]
["plocha pro jeden sběrný okruh","m2",0,0,0]
["současná hodnota",null,{"$f":"C86*(1/(1+Předpoklady!$D$56)^-1)","v":0},{"$f":"D86*(1/(1+Předpoklady!$D$56)^0)","v":0},{"$f":"E86*(1/(1+Předpoklady!$D$56)^1)","v":0},0]

{"sheet":"Náklady na opakující se služby","index":14,"n_rows":118,"n_cols":16,"rows_kept":118,"cut":false,"hidden":false,"merged":[[43,6,43,7],[43,10,43,11],[11,4,11,10],[100,2,101,2]]}
["Náklady na kolokaci"]
["Náklady na opakujúce se (pravidelné) služby"]
["Výpočtové tabulky-nevyplňují se !"]
[]
["1.Investičné náklady"]
[null,null,"bez nákladů na instalaci                   ","náklady na instalaci"]
["Investície"]
["Investície do kolokačného miesta","tis. €",{"$f":"Investice!F18","v":{"$error":"#DIV/0!"}}]
["Investície na m2 kolokačného priestoru","tis. €",{"$f":"Investice!F12","v":{"$error":"#DIV/0!"}}]
[]
["Káble, káblové rošty a prostupy"]
["Spojovacie kábely vnútorné","počet párů",null,null,"Náklady jsou kalkulované na modelovou kapacitu počtu párů v kabelu, což se rovná modelové kapacitě plně vykáblovaného pásiku na PR"]
["stíněný vnútorný spojovací kábel (vč. LSA pásiku na HRaPR) ",{"$f":"Předpoklady!I12","v":0},{"$f":"Investice!G32","v":{"$error":"#DIV/0!"}},{"$f":"C13*'Prvky kolokace'!D15","v":{"$error":"#DIV/0!"}}]
["nestíněný vnútorný spojovací kábel (vč. LSA pásiku na HRaPR)",{"$f":"Předpoklady!I12","v":0},{"$f":"Investice!G34","v":{"$error":"#DIV/0!"}},{"$f":"C14*'Prvky kolokace'!D16","v":{"$error":"#DIV/0!"}}]
[]
["Spojovací okruhy"]
["stíněný vnútorný spojovací kábel metalický 2Mbit/s (vč. DR)","2páry",{"$f":"Investice!E48","v":0},{"$f":"C17*'Prvky kolokace'!D26","v":0}]
["optický vnitřní spojovací kabel (vč.OR)","pár vláken",{"$f":"Investice!E49","v":0},{"$f":"C18*'Prvky kolokace'!D27","v":0}]
[]
["Kábly sběrného okruhu"]
["kábel sběrného okruhu optický","pár vláken",{"$f":"Investice!E52","v":0},{"$f":"C21*'Prvky kolokace'!D30","v":0}]
["kábel sběrného okruhu metalický","2páry",{"$f":"Investice!E53","v":0},{"$f":"C22*'Prvky kolokace'!D31","v":0}]
[]
["Vonkajší spojovacie kábly"]
["vonkajší spojovací kábel metalický pro vnútorné prostredie včetne pasikov na HR a PR",{"$f":"Předpoklady!I12","v":0},{"$f":"Investice!G37","v":0},{"$f":"C25*'Prvky kolokace'!D19","v":0}]
["vonkajší spojovací kábel metalický stíněný pro vnútorné prostredie vč. pásikov na HR a PR",{"$f":"Předpoklady!I12","v":0},{"$f":"Investice!G39","v":0},{"$f":"C26*'Prvky kolokace'!D20","v":0}]
["vonkajší spojovací kábel metalický stíněný pro vonkajšie prostredie vč. pásikov na HR a PR",{"$f":"Předpoklady!I12","v":0},{"$f":"Investice!G41","v":0},{"$f":"C27*'Prvky kolokace'!D21","v":0}]
["vonkajší spojovací kábel metalický pro vonkajšie prostredie vč. pásikov na HR a PR",{"$f":"Předpoklady!I12","v":0},{"$f":"Investice!G43","v":0},{"$f":"C28*'Prvky kolokace'!D22","v":0}]
[]
["Káblové rošty a prostupy"]
["nájem priestoru v káblovom roštu  ST","1 bm",{"$f":"Investice!F61","v":0}]
["nájem prostupu do budovy","1 kabel",{"$f":"Investice!F66","v":0}]
[]
["Spoločný prístup (rozdělovač)"]
["náklady na rozdělovače při kapacitě párů",{"$f":"Předpoklady!I12","v":0},{"$f":"'Prvky kolokace'!C13*Předpoklady!I12","v":0},{"$f":"C35*'Prvky kolokace'!D13","v":0}]
[]
["Dalšie súvisiace zariadenia"]
["napájanie 48 V","jednotka",{"$f":"'Prvky kolokace'!C38","v":0},{"$f":"C38*'Prvky kolokace'!D38","v":0}]
["napájací kabel 220 V","1 kábel",{"$f":"'Prvky kolokace'!C39","v":0},{"$f":"C39*'Prvky kolokace'!D39","v":0}]
["UPS (zdroj nepretržitého napájenia)","1 UPS",{"$f":"'Prvky kolokace'!C40","v":0},{"$f":"C40*'Prvky kolokace'!D40","v":0}]
[]
[]
[]
["2.Výpočet mesačných nákladov"]
[null,null,"Roční anuita",null,null,null,"Provozní náklady","Režie",null,null,"Ročné náklady vr. WACC","Mesačné náklady vr. WACC"]
["Investície"]
["Investície do kolokačného miesta","tis. €",{"$f":"C8*depreciation(Předpoklady!$D$56,'Prvky kolokace'!$E7,'Prvky kolokace'!$F7,'Prvky kolokace'!$G7)","v":{"$error":"#DIV/0!"}},null,null,null,{"$f":"$C$8*'Prvky kolokace'!$H$7+Předpoklady!D73*Investice!$F$8/1000*(1+Předpoklady!$I$6)","v":{"$error":"#DIV/0!"}},{"$f":"(C47+G47)*Předpoklady!$D$57","v":{"$error":"#DIV/0!"}},null,null,{"$f":"(C47+G47+H47)*(1+Předpoklady!$D$56)","v":{"$error":"#DIV/0!"}},{"$f":"K47/12","v":{"$error":"#DIV/0!"}}]
["Investicíe na m2 kolokačného priestoru","tis.€",{"$f":"C9*depreciation(Předpoklady!$D$56,'Prvky kolokace'!$E7,'Prvky kolokace'!$F7,'Prvky kolokace'!$G7)","v":{"$error":"#DIV/0!"}},null,null,null,{"$f":"$C$9*'Prvky kolokace'!$H$7+Předpoklady!D73/1000","v":{"$error":"#DIV/0!"}},{"$f":"(C48+G48)*Předpoklady!$D$57","v":{"$error":"#DIV/0!"}},null,null,{"$f":"(C48+G48+H48)*(1+Předpoklady!$D$56)","v":{"$error":"#DIV/0!"}},{"$f":"K48/12","v":{"$error":"#DIV/0!"}}]
["Káble, káblové rošty a prostupy"]
["Spojovací kábly vnútorné"]
["stíněný vnútorný spojovací kábel (vč. LSA pásiku na HR aPR) ",{"$f":"B13","v":0},{"$f":"(C13+D13)*depreciation(Předpoklady!$D$56,'Prvky kolokace'!$E15,'Prvky kolokace'!$F15,'Prvky kolokace'!$G15)","v":{"$error":"#DIV/0!"}},null,null,null,{"$f":"C13*'Prvky kolokace'!H15","v":{"$error":"#DIV/0!"}},{"$f":"(C51+G51)*Předpoklady!$D$57","v":{"$error":"#DIV/0!"}},null,null,{"$f":"(C51+G51+H51)*(1+Předpoklady!$D$56)","v":{"$error":"#DIV/0!"}},{"$f":"K51/12","v":{"$error":"#DIV/0!"}}]
["nestíněný vnútorný spojovací kábel (vč. LSA pásiku na HR a PR)",{"$f":"B14","v":0},{"$f":"(C14+D14)*depreciation(Předpoklady!$D$56,'Prvky kolokace'!$E16,'Prvky kolokace'!$F16,'Prvky kolokace'!$G16)","v":{"$error":"#DIV/0!"}},null,null,null,{"$f":"C14*'Prvky kolokace'!H16","v":{"$error":"#DIV/0!"}},{"$f":"(C52+G52)*Předpoklady!$D$57","v":{"$error":"#DIV/0!"}},null,null,{"$f":"(C52+G52+H52)*(1+Předpoklady!$D$56)","v":{"$error":"#DIV/0!"}},{"$f":"K52/12","v":{"$error":"#DIV/0!"}}]
[]
["Spojovací okruhy"]
["stíněný vnútorný spojovací kábel metalický 2Mbit/s (vč. DR)",{"$f":"B17","v":"2páry"},{"$f":"(C17+D17)*depreciation(Předpoklady!$D$56,'Prvky kolokace'!$E26,'Prvky kolokace'!$F26,'Prvky kolokace'!$G26)","v":0},null,null,null,{"$f":"'Prvky kolokace'!C26*'Prvky kolokace'!H26","v":0},{"$f":"(C55+G55)*Předpoklady!$D$57","v":0},null,null,{"$f":"(C55+G55+H55)*(1+Předpoklady!$D$56)","v":0},{"$f":"K55/12","v":0}]
["optický vnitřní spojovací kabel (vč.OR)","pár vláken",{"$f":"(C18+D18)*depreciation(Předpoklady!$D$56,'Prvky kolokace'!$E27,'Prvky kolokace'!$F27,'Prvky kolokace'!$G27)","v":0},null,null,null,{"$f":"'Prvky kolokace'!C27*'Prvky kolokace'!H27","v":0},{"$f":"(C56+G56)*Předpoklady!$D$57","v":0},null,null,{"$f":"(C56+G56+H56)*(1+Předpoklady!$D$56)","v":0},{"$f":"K56/12","v":0}]
[]
["Kábly sběrného okruhu"]
["kábel sběrného okruhu optický","pár vláken",{"$f":"(C21+D21)*depreciation(Předpoklady!$D$56,'Prvky kolokace'!$E30,'Prvky kolokace'!$F30,'Prvky kolokace'!$G30)","v":0},null,null,null,{"$f":"'Prvky kolokace'!C30*'Prvky kolokace'!H30","v":0},{"$f":"(C59+G59)*Předpoklady!$D$57","v":0},null,null,{"$f":"(C59+G59+H59)*(1+Předpoklady!$D$56)","v":0},{"$f":"K59/12","v":0}]
["kábel sběrného okruhu metalický",{"$f":"B22","v":"2páry"},{"$f":"(C22+D22)*depreciation(Předpoklady!$D$56,'Prvky kolokace'!$E31,'Prvky kolokace'!$F31,'Prvky kolokace'!$G31)","v":0},null,null,null,{"$f":"'Prvky kolokace'!C31*'Prvky kolokace'!H31","v":0},{"$f":"(C60+G60)*Předpoklady!$D$57","v":0},null,null,{"$f":"(C60+G60+H60)*(1+Předpoklady!$D$56)","v":0},{"$f":"K60/12","v":0}]
[]
["Vonkajšie spojovacie kábly"]
["vonkajší spojovací kábel metalický pro vnútorné prostredie včetne pasikov na HR a PR",{"$f":"B25","v":0},{"$f":"(C25+D25)*depreciation(Předpoklady!$D$56,'Prvky kolokace'!$E19,'Prvky kolokace'!$F19,'Prvky kolokace'!$G19)","v":0},null,null,null,{"$f":"C25*'Prvky kolokace'!H19","v":0},{"$f":"(C63+G63)*Předpoklady!$D$57","v":0},null,null,{"$f":"(C63+G63+H63)*(1+Předpoklady!$D$56)","v":0},{"$f":"K63/12","v":0}]
["vonkajší spojovací kábel metalický stíněný pro vnútorné prostredie vč. pásikov na HR a PR",{"$f":"B26","v":0},{"$f":"(C26+D26)*depreciation(Předpoklady!$D$56,'Prvky kolokace'!$E20,'Prvky kolokace'!$F20,'Prvky kolokace'!$G20)","v":0},null,null,null,{"$f":"C26*'Prvky kolokace'!H20","v":0},{"$f":"(C64+G64)*Předpoklady!$D$57","v":0},null,null,{"$f":"(C64+G64+H64)*(1+Předpoklady!$D$56)","v":0},{"$f":"K64/12","v":0}]
["vonkajší spojovací kábel metalický stíněný pro vonkajšie prostredie vč. pásikov na HR a PR",{"$f":"B27","v":0},{"$f":"(C27+D27)*depreciation(Předpoklady!$D$56,'Prvky kolokace'!$E21,'Prvky kolokace'!$F21,'Prvky kolokace'!$G21)","v":0},null,null,null,{"$f":"C27*'Prvky kolokace'!H21","v":0},{"$f":"(C65+G65)*Předpoklady!$D$57","v":0},null,null,{"$f":"(C65+G65+H65)*(1+Předpoklady!$D$56)","v":0},{"$f":"K65/12","v":0}]
["vonkajší spojovací kábel metalický pro vonkajšie prostredie vč. pásikov na HR a PR",{"$f":"B28","v":0},{"$f":"(C28+D28)*depreciation(Předpoklady!$D$56,'Prvky kolokace'!$E22,'Prvky kolokace'!$F22,'Prvky kolokace'!$G22)","v":0},null,null,null,{"$f":"C28*'Prvky kolokace'!H22","v":0},{"$f":"(C66+G66)*Předpoklady!$D$57","v":0},null,null,{"$f":"(C66+G66+H66)*(1+Předpoklady!$D$56)","v":0},{"$f":"K66/12","v":0}]
[]
["Káblové rošty a prostupy"]
["nájem priestora v káblovom roštu  ST","m",{"$f":"C31*depreciation(Předpoklady!$D$56,'Prvky kolokace'!$E34,'Prvky kolokace'!$F34,'Prvky kolokace'!$G34)","v":0},null,null,null,{"$f":"C69*'Prvky kolokace'!H34+Investice!F63","v":0},{"$f":"(C69+G69)*Předpoklady!$D$57","v":0},null,null,{"$f":"(C69+G69+H69)*(1+Předpoklady!$D$56)","v":0},{"$f":"K69/12","v":0}]
["nájem prostupu do budovy","m2",{"$f":"C32*depreciation(Předpoklady!$D$56,'Prvky kolokace'!$E35,'Prvky kolokace'!$F35,'Prvky kolokace'!$G35)","v":0},null,null,null,{"$f":"C70*'Prvky kolokace'!H35","v":0},{"$f":"(C70+G70)*Předpoklady!$D$57","v":0},null,null,{"$f":"(C70+G70+H70)*(1+Předpoklady!$D$56)","v":0},{"$f":"K70/12","v":0}]
[]
["Spoločný prístup (rozdělovač)"]
["náklady na rozdělovače při kapacitě párů",{"$f":"B35","v":0},{"$f":"(C35+D35)*depreciation(Předpoklady!$D$56,'Prvky kolokace'!$E13,'Prvky kolokace'!$F13,'Prvky kolokace'!$G13)","v":0},null,null,null,{"$f":"C35*'Prvky kolokace'!H13","v":0},{"$f":"(C73+G73)*Předpoklady!$D$57","v":0},null,null,{"$f":"(C73+G73+H73)*(1+Předpoklady!$D$56)","v":0},{"$f":"K73/12","v":0}]
[]
["Dalšie súvisiace zariadenia"]
["napájanie 48 V","jednotka",{"$f":"(C38+D38)*depreciation(Předpoklady!$D$56,'Prvky kolokace'!$E38,'Prvky kolokace'!$F38,'Prvky kolokace'!$G38)","v":0},null,null,null,{"$f":"C38*'Prvky kolokace'!H38","v":0},{"$f":"(C76+G76)*Předpoklady!$D$57","v":0},null,null,{"$f":"(C76+G76+H76)*(1+Předpoklady!$D$56)","v":0},{"$f":"K76/12","v":0}]
["napájací kabel 220 V","1 kábel",{"$f":"(C39+D39)*depreciation(Předpoklady!$D$56,'Prvky kolokace'!$E39,'Prvky kolokace'!$F39,'Prvky kolokace'!$G39)","v":0},null,null,null,{"$f":"C39*'Prvky kolokace'!H39","v":0},{"$f":"(C77+G77)*Předpoklady!$D$57","v":0},null,null,{"$f":"(C77+G77+H77)*(1+Předpoklady!$D$56)","v":0},{"$f":"K77/12","v":0}]
["UPS (zdroj nepretržitého napájenia)","1 UPS",{"$f":"(C40+D40)*depreciation(Předpoklady!$D$56,'Prvky kolokace'!$E40,'Prvky kolokace'!$F40,'Prvky kolokace'!$G40)","v":0},null,null,null,{"$f":"C40*'Prvky kolokace'!H40","v":0},{"$f":"(C78+G78)*Předpoklady!$D$57","v":0},null,null,{"$f":"(C78+G78+H78)*(1+Předpoklady!$D$56)","v":0},{"$f":"K78/12","v":0}]
[]
[]
[]
[]
["Prenájmy kolokačných miest"]
[]
["Kolokačné miesto",null,null,null,null,null,null,null,null,null,null,null,null,"včetně suvisiace zariadenia fyzická kolokácia",null,"včetně suvisiace zariadenia vzdialená kolokácia"]
["Pronájem kolokačního miesta průměr SR",null,{"$f":"$C$47*1000","v":{"$error":"#DIV/0!"}},null,null,null,{"$f":"$C$8*'Prvky kolokace'!$H$7*1000+Předpoklady!D73*Investice!$F$8*(1+Předpoklady!$I$6)","v":{"$error":"#DIV/0!"}},{"$f":"(C86+G86)*Předpoklady!$D$57","v":{"$error":"#DIV/0!"}},null,null,{"$f":"(C86+G86+H86)*(1+Předpoklady!$D$56)","v":{"$error":"#DIV/0!"}},{"$f":"K86/12","v":{"$error":"#DIV/0!"}},null,{"$f":"$C$116+L86","v":{"$error":"#DIV/0!"}},null,"N/A"]
["Pronájem kolokačného miesta v zóně I",null,{"$f":"$C$47*1000","v":{"$error":"#DIV/0!"}},null,null,null,{"$f":"$C$8*'Prvky kolokace'!$H$7*1000+Předpoklady!D69*Investice!$F$8*(1+Předpoklady!$I$6)","v":{"$error":"#DIV/0!"}},{"$f":"(C87+G87)*Předpoklady!$D$57","v":{"$error":"#DIV/0!"}},null,null,{"$f":"(C87+G87+H87)*(1+Předpoklady!$D$56)","v":{"$error":"#DIV/0!"}},{"$f":"K87/12","v":{"$error":"#DIV/0!"}},null,{"$f":"$C$116+L87","v":{"$error":"#DIV/0!"}},null,"N/A"]
["Pronájem kolokačného miesta v zóně II",null,{"$f":"$C$47*1000","v":{"$error":"#DIV/0!"}},null,null,null,{"$f":"$C$8*'Prvky kolokace'!$H$7*1000+Předpoklady!D70*Investice!$F$8*(1+Předpoklady!$I$6)","v":{"$error":"#DIV/0!"}},{"$f":"(C88+G88)*Předpoklady!$D$57","v":{"$error":"#DIV/0!"}},null,null,{"$f":"(C88+G88+H88)*(1+Předpoklady!$D$56)","v":{"$error":"#DIV/0!"}},{"$f":"K88/12","v":{"$error":"#DIV/0!"}},null,{"$f":"$C$116+L88","v":{"$error":"#DIV/0!"}},null,"N/A"]
["Pronájem kolokačného miesta v zóně III",null,{"$f":"$C$47*1000","v":{"$error":"#DIV/0!"}},null,null,null,{"$f":"$C$8*'Prvky kolokace'!$H$7*1000+Předpoklady!D71*Investice!$F$8*(1+Předpoklady!$I$6)","v":{"$error":"#DIV/0!"}},{"$f":"(C89+G89)*Předpoklady!$D$57","v":{"$error":"#DIV/0!"}},null,null,{"$f":"(C89+G89+H89)*(1+Předpoklady!$D$56)","v":{"$error":"#DIV/0!"}},{"$f":"K89/12","v":{"$error":"#DIV/0!"}},null,{"$f":"$C$116+L89","v":{"$error":"#DIV/0!"}},null,"N/A"]
["Pronájem kolokačného miesta v zóně IV",null,{"$f":"$C$47*1000","v":{"$error":"#DIV/0!"}},null,null,null,{"$f":"$C$8*'Prvky kolokace'!$H$7*1000+Předpoklady!D72*Investice!$F$8*(1+Předpoklady!$I$6)","v":{"$error":"#DIV/0!"}},{"$f":"(C90+G90)*Předpoklady!$D$57","v":{"$error":"#DIV/0!"}},null,null,{"$f":"(C90+G90+H90)*(1+Předpoklady!$D$56)","v":{"$error":"#DIV/0!"}},{"$f":"K90/12","v":{"$error":"#DIV/0!"}},null,{"$f":"$C$116+L90","v":{"$error":"#DIV/0!"}},null,"N/A"]
[]
["Kolokačný priestor"]
["Priemerný náklad m2 kolokačného priestoru Slovensko",null,{"$f":"$C$48","v":{"$error":"#DIV/0!"}},null,null,null,{"$f":"$C$9*'Prvky kolokace'!$H$7+Předpoklady!D73/1000","v":{"$error":"#DIV/0!"}},{"$f":"(C93+G93)*Předpoklady!$D$57","v":{"$error":"#DIV/0!"}},null,null,{"$f":"(C93+G93+H93)*(1+Předpoklady!$D$56)","v":{"$error":"#DIV/0!"}},{"$f":"K93/12*1000","v":{"$error":"#DIV/0!"}}]
["Priemerný náklad m2 kolokačného priestoru zóna I",null,{"$f":"$C$48","v":{"$error":"#DIV/0!"}},null,null,null,{"$f":"$C$9*'Prvky kolokace'!$H$7+Předpoklady!D69/1000","v":{"$error":"#DIV/0!"}},{"$f":"(C94+G94)*Předpoklady!$D$57","v":{"$error":"#DIV/0!"}},null,null,{"$f":"(C94+G94+H94)*(1+Předpoklady!$D$56)","v":{"$error":"#DIV/0!"}},{"$f":"K94/12*1000","v":{"$error":"#DIV/0!"}}]
["Priemerný náklad m2 kolokačného priestoru zóna II",null,{"$f":"$C$48","v":{"$error":"#DIV/0!"}},null,null,null,{"$f":"$C$9*'Prvky kolokace'!$H$7+Předpoklady!D70/1000","v":{"$error":"#DIV/0!"}},{"$f":"(C95+G95)*Předpoklady!$D$57","v":{"$error":"#DIV/0!"}},null,null,{"$f":"(C95+G95+H95)*(1+Předpoklady!$D$56)","v":{"$error":"#DIV/0!"}},{"$f":"K95/12*1000","v":{"$error":"#DIV/0!"}}]
["Priemerný náklad m2 kolokačného priestoru zóna III",null,{"$f":"$C$48","v":{"$error":"#DIV/0!"}},null,null,null,{"$f":"$C$9*'Prvky kolokace'!$H$7+Předpoklady!D71/1000","v":{"$error":"#DIV/0!"}},{"$f":"(C96+G96)*Předpoklady!$D$57","v":{"$error":"#DIV/0!"}},null,null,{"$f":"(C96+G96+H96)*(1+Předpoklady!$D$56)","v":{"$error":"#DIV/0!"}},{"$f":"K96/12*1000","v":{"$error":"#DIV/0!"}}]
["Priemerný náklad m2 kolokačného priestoru zóna IV",null,{"$f":"$C$48","v":{"$error":"#DIV/0!"}},null,null,null,{"$f":"$C$9*'Prvky kolokace'!$H$7+Předpoklady!D72/1000","v":{"$error":"#DIV/0!"}},{"$f":"(C97+G97)*Předpoklady!$D$57","v":{"$error":"#DIV/0!"}},null,null,{"$f":"(C97+G97+H97)*(1+Předpoklady!$D$56)","v":{"$error":"#DIV/0!"}},{"$f":"K97/12*1000","v":{"$error":"#DIV/0!"}}]
[]
["Dalšie slúžby a prenájmy"]
[]
[" "]
["Dalšie priestory"]
["pre umiestenie rošta oprávneného poskytovateľa","1bm",1,null,null,null,{"$f":"C103*Investice!F63","v":0},{"$f":"G103*Předpoklady!$D$57","v":0},null,null,{"$f":"(G103+H103)*(1+Předpoklady!$D$56)","v":0},{"$f":"K103/12","v":0}]
["nájem priestoru pre umiestenie antény v zóně I","m2",{"$f":"Investice!$F$81","v":0},null,null,null,{"$f":"C104*Předpoklady!D69","v":0},{"$f":"(G104)*Předpoklady!$D$57","v":0},null,null,{"$f":"(G104+H104)*(1+Předpoklady!$D$56)","v":0},0]
["nájem priestoru pre umiestenie antény v zóně II","m2",{"$f":"Investice!$F$81","v":0},null,null,null,{"$f":"C105*Předpoklady!D70","v":0},{"$f":"(G105)*Předpoklady!$D$57","v":0},null,null,{"$f":"(G105+H105)*(1+Předpoklady!$D$56)","v":0},0]
["nájem priestoru pre umiestenie antény v zóně III","m2",{"$f":"Investice!$F$81","v":0},null,null,null,{"$f":"C106*Předpoklady!D71","v":0},{"$f":"(G106)*Předpoklady!$D$57","v":0},null,null,{"$f":"(G106+H106)*(1+Předpoklady!$D$56)","v":0},0]
["nájem priestoru pre umiestenie antény v zóně IV","m2",{"$f":"Investice!$F$81","v":0},null,null,null,{"$f":"C107*Předpoklady!D72","v":0},{"$f":"(G107)*Předpoklady!$D$57","v":0},null,null,{"$f":"(G107+H107)*(1+Předpoklady!$D$56)","v":0},0]
["nájem priestora pre umiestenie kábla na pozemku ST v zóně I","m2",{"$f":"Investice!$F$87","v":0},null,null,null,{"$f":"C108*Předpoklady!C69","v":0},{"$f":"(G108)*Předpoklady!$D$57","v":0},null,null,{"$f":"(G108+H108)*(1+Předpoklady!$D$56)","v":0},0]
["nájem priestora pre umiestenie kábla na pozemku ST v zóně II","m2",{"$f":"Investice!$F$87","v":0},null,null,null,{"$f":"C109*Předpoklady!C70","v":0},{"$f":"(G109)*Předpoklady!$D$57","v":0},null,null,{"$f":"(G109+H109)*(1+Předpoklady!$D$56)","v":0},0]
["nájem priestora pre umiestenie kábla na pozemku ST v zóně III","m2",{"$f":"Investice!$F$87","v":0},null,null,null,{"$f":"C110*Předpoklady!C71","v":0},{"$f":"(G110)*Předpoklady!$D$57","v":0},null,null,{"$f":"(G110+H110)*(1+Předpoklady!$D$56)","v":0},0]
["nájem priestora pre umiestenie kábla na pozemku ST v zóně IV","m2",{"$f":"Investice!$F$87","v":0},null,null,null,{"$f":"C111*Předpoklady!C72","v":0},{"$f":"(G111)*Předpoklady!$D$57","v":0},null,null,{"$f":"(G111+H111)*(1+Předpoklady!$D$56)","v":0},0]
[]
[]
["Súbor súvisiacích zariadení zahrnutých pod súhrnú cenu"]
["Služby fyzickej kolokácie",null,"mesiačna cena"]
["spojovací kabel včetně pásikov na HR a PR",null,{"$f":"IF(L51>L52,L51,L52)","v":{"$error":"#DIV/0!"}}]
["Služby vzdialenej kolokácie"]
["spojovací kabel včetně pásikov na HR a PR",null,{"$f":"MAX(L63:L66)","v":0}]

{"sheet":"Ceny","index":15,"n_rows":78,"n_cols":8,"rows_kept":78,"cut":false,"hidden":false,"merged":[[65,5,65,7],[65,1,65,3],[0,0,0,6],[1,0,1,6],[59,5,59,6],[3,0,3,6],[22,0,22,6],[56,0,56,6]]}
["Náklady na kolokaci"]
["Súhrné výpočty. Ceny produktov kolokácie"]
[]
["SÚHRNÉ CENY"]
[]
[null,"Ceny 01 Priemerné jednorázové ceny v €",null,null,null,"Ceny 02 Periodické/mesiačné ceny v €"]
[null,null,null,null,null,"01Průměrná cena za kolokačné miesto",{"$f":"'Náklady na opakující se služby'!L86","v":{"$error":"#DIV/0!"}}]
[null,"01 Vykonanie predbežného šetrenia",{"$f":"'Náklady jednorázové'!J10","v":0},null,null,"02Súvisiace zariadení fyzickej kolokácie","Ceny 02.1"]
[null,"02 Vykonanie podrobného šetrenia",{"$f":"'Náklady jednorázové'!J11","v":{"$error":"#DIV/0!"}},null,null,"03Súvisiace zariadení vzdialenej kolokácie",{"$f":"'Náklady na opakující se služby'!$C$118","v":0}]
[null,"03 Obhliadka miesta kolokácie",{"$f":"'Náklady jednorázové'!J12","v":{"$error":"#DIV/0!"}},null,null,"04Cena za miesto a súvisiace zariadení fyzickej kolokácie",{"$f":"'Náklady na opakující se služby'!N86","v":{"$error":"#DIV/0!"}}]
[null,"04 Změna požiadavky na kolokáciu",{"$f":"'Náklady jednorázové'!J13","v":0},null,null,"05Cena za miesto  a súvisiace zariadení vzdálenej kolokácie",{"$f":"'Náklady na opakující se služby'!P86","v":"N/A"}]
[null,"05 Zriadenie kolokačného priestoru",{"$f":"'Náklady jednorázové'!J17","v":{"$error":"#DIV/0!"}},null,null,"04.1Cena za kolokačné miesto v zóne I  (fyzická kol)",{"$f":"'Náklady na opakující se služby'!N87","v":{"$error":"#DIV/0!"}}]
[null,"06 Zriedenie kolokačného miesta",{"$f":"'Náklady jednorázové'!J18","v":{"$error":"#DIV/0!"}},null,null,"05.1Cena za kolokačné miesto zóne I  (vzdálená kol)",{"$f":"'Náklady na opakující se služby'!P87","v":"N/A"}]
[null,"07 Identifikácia miesta prístupu",{"$f":"'Náklady jednorázové'!J19","v":0},null,null,"04.2Cena za kolokačné miesto  v zóne II (fyzická kol)",{"$f":"'Náklady na opakující se služby'!N88","v":{"$error":"#DIV/0!"}}]
[null,"08 Inštalácia/rozšírenie súvisiacich zariadení",{"$f":"'Náklady jednorázové'!J24","v":{"$error":"#DIV/0!"}},null,null,"05.2Cena za kolokačné miesto  v zóne II  (vzdálená kol)",{"$f":"'Náklady na opakující se služby'!P88","v":"N/A"}]
[null,"09 Inštalácie rozdelovačov",{"$f":"'Náklady jednorázové'!J27","v":0},null,null,"04.3Cena za kolokačné miesto  v zóne III  (fyzická kol)",{"$f":"'Náklady na opakující se služby'!N89","v":{"$error":"#DIV/0!"}}]
[null,"10 Sprevádzaný vstup",{"$f":"'Náklady jednorázové'!J31","v":{"$error":"#DIV/0!"}},null,null,"05.3Cena za kolokačné miesto  v zóne III  (vzdálená kol)",{"$f":"'Náklady na opakující se služby'!P89","v":"N/A"}]
[null,"11 Povolenie na vstup do špecifikovaných miest na dobu 3 mesiace",{"$f":"'Náklady jednorázové'!J32","v":0},null,null,"04.4Cena za kolokačné miesto v zóne VI  (fyzická kol)",{"$f":"'Náklady na opakující se služby'!N90","v":{"$error":"#DIV/0!"}}]
[null,"12 Vydanie preukazu o 31.12.b.r.",{"$f":"'Náklady jednorázové'!J33","v":0},null,null,"05.4Cena za kolokačné miesto v zóne VI (vzdálená kol)",{"$f":"'Náklady na opakující se služby'!P90","v":"N/A"}]
[null,"13 Prevádzkový test zariadenie",{"$f":"'Náklady jednorázové'!J34","v":0},null,null,"06Cena za plně vykabelovanou sadu rozdělovačů",{"$f":"'Náklady na opakující se služby'!L73","v":0}]
[null,"14 Administratívne posúdenie zariadenia",{"$f":"'Náklady jednorázové'!J35","v":0}]
[]
["NÁKLADY ZA DIELČIE A VOLITELNÉ SLUŽBY"]
[]
[null,"Ceny 01.1 Jednorázovo platené ceny v €",null,null,null,"Ceny 02.1 Periodické/mesiačné ceny (€ za mesiac)"]
[null,"08.01 instalace vnitřních spojovacích kabelů a pásků na HR",{"$f":"'Náklady jednorázové'!J25","v":{"$error":"#DIV/0!"}},null,null,"02.01 stíněný vnútorný spojovací kábel (vč. LSA pásiku na HR) ",{"$f":"'Náklady na opakující se služby'!L51","v":{"$error":"#DIV/0!"}}]
[null,"08.02 instalace vnějších spojovacích kabelů a pásků na HR ",{"$f":"'Náklady jednorázové'!J26","v":0},null,null,"02.02 nestíněný vnútorný spojovací kábel (vč. LSA pásiku na HR)",{"$f":"'Náklady na opakující se služby'!L52","v":{"$error":"#DIV/0!"}}]
[null,"Volitelné služby",null,null,null,"07 vnútorný spojovací kábel metalický 2Mbit/s (vč. DR)",{"$f":"'Náklady na opakující se služby'!L55","v":0}]
[null,"15 instalace napájení 48 a 230V",{"$f":"'Náklady jednorázové'!J40","v":"N/A"},null,null,"08 optický vnútorný spojovací kábel (vč.OR)",{"$f":"'Náklady na opakující se služby'!L56","v":0}]
[null,"16 instalace UPS",{"$f":"'Náklady jednorázové'!J41","v":"N/A"},null,null,"09 kábel sběrného okruhu optický",{"$f":"'Náklady na opakující se služby'!L59","v":0}]
[null,"17 instalace optického sběrného okruhu",{"$f":"'Náklady jednorázové'!J42","v":"N/A"},null,null,"10 kábel sběrného okruhu metalický",{"$f":"'Náklady na opakující se služby'!L60","v":0}]
[null,"18 instalace metalického sběrné okruhu",{"$f":"'Náklady jednorázové'!J43","v":"N/A"},null,null,"03.01vonkajší spojovací kábel metalický pro vnútorné prostredie včetne pasikov na HR ",{"$f":"'Náklady na opakující se služby'!L63","v":0}]
[null,null,null,null,null,"03.02vonkajší spojovací kábel metalický stíněný pro vnútorné prostredie vč. pásikov na HR a PR",{"$f":"'Náklady na opakující se služby'!L64","v":0}]
[null,null,null,null,null,"03.03 vonkajší spojovací kábel metalický stíněný pro vonkajšie prostredie vč. pásikov na HR a PR",{"$f":"'Náklady na opakující se služby'!L65","v":0}]
[null,null,null,null,null,"03.04vonkajší spojovací kábel metalický pro vonkajšie prostredie vč. pásikov na HR a PR",{"$f":"'Náklady na opakující se služby'!L66","v":0}]
[null,null,null,null,null,"11 nájem priestora v káblovom roštu  ST",{"$f":"'Náklady na opakující se služby'!L69","v":0}]
[null,null,null,null,null,"12 nájem prostupu do budovy",{"$f":"'Náklady na opakující se služby'!L70","v":0}]
[null,null,null,null,null,"13 napájanie 48 V",{"$f":"'Náklady na opakující se služby'!L76","v":0}]
[null,null,null,null,null,"14 napájací kabel 220 V",{"$f":"'Náklady na opakující se služby'!L77","v":0}]
[null,null,null,null,null,"15 UPS (zdroj nepretržitého napájenia)",{"$f":"'Náklady na opakující se služby'!L78","v":0}]
[null,"Ceny 02.3 Priemerný náklad na čistý m2 plochy kolokačného priestoru","€/mesiac"]
[null,"Slovensko",{"$f":"'Náklady na opakující se služby'!L93","v":{"$error":"#DIV/0!"}},null,null,"Ceny 02.2 Dalšie mesačné nájmy "]
[null,"zóna I",{"$f":"'Náklady na opakující se služby'!L94","v":{"$error":"#DIV/0!"}},null,null,"16 nájem priestoru pre umiestenie roštu oprávneného poskytovateľa",{"$f":"'Náklady na opakující se služby'!L103","v":0}]
[null,"zóna II",{"$f":"'Náklady na opakující se služby'!L95","v":{"$error":"#DIV/0!"}},null,null,"17 nájem priestoru pre umiestenie antény v zóně I",{"$f":"'Náklady na opakující se služby'!L104","v":0}]
[null,"zóna III",{"$f":"'Náklady na opakující se služby'!L96","v":{"$error":"#DIV/0!"}},null,null,"18 nájem priestoru pre umiestenie antény v zóně II",{"$f":"'Náklady na opakující se služby'!L105","v":0}]
[null,"zóna IV",{"$f":"'Náklady na opakující se služby'!L97","v":{"$error":"#DIV/0!"}},null,null,"19 nájem priestoru pre umiestenie antény v zóně III",{"$f":"'Náklady na opakující se služby'!L106","v":0}]
[null,null,null,null,null,"20 nájem priestoru pre umiestenie antény v zóně IV",{"$f":"'Náklady na opakující se služby'!L107","v":0}]
[null,null,null,null,null,"21 nájem priestora pre umiestenie kábla na pozemku ST v zóně I",{"$f":"'Náklady na opakující se služby'!L108","v":0}]
[null,null,null,null,null,"22 nájem priestora pre umiestenie kábla na pozemku ST v zóně II",{"$f":"'Náklady na opakující se služby'!L109","v":0}]
[null,null,null,null,null,"23 nájem priestora pre umiestenie kábla na pozemku ST v zóně III",{"$f":"'Náklady na opakující se služby'!L110","v":0}]
[null,null,null,null,null,"24 nájem priestora pre umiestenie kábla na pozemku ST v zóně IV",{"$f":"'Náklady na opakující se služby'!L111","v":0}]
[]
[]
[]
[]
[]
["KALKULAČKA  CENY ZA KOLOKAČNÝ PRIESTOR  PODLA REFERENČNEJ PONUKY ST"]
[]
[]
[]
[]
[]
[]
[]
[]
[null," KALKULAĆKA CENY ZA KOLOKAĆNÝ PRIESTOR (FYZICKÁ KOL.)",null,null,null," KALKULAĆKA CENY ZA KOLOKAĆNÝ PRIESTOR (VZDIALENÁ KOL.)"]
[null,null,3,null,null,null,3]
[null,"Zóna alokácie kolokačného miesta (0 až4)      ",4,null,null,"Zóna alokácie kolokačného miesta (0 až4)      ",0]
[]
[null,"Zkrátený názov zóny :     ",{"$f":"Předpoklady!$F$72","v":"vidiek"},null,null,"Zkrátený názov zóny :     ",{"$f":"Předpoklady!$F$73","v":"Slovensko"}]
[]
[null,"Kapacita kolokačného priestoru (max.počet kol. miest)     ",5,null,null,"Kapacita kolokačného priestoru (max.počet kol. miest)     ",5]
[]
[null,"Počet prenajatých kolokačných miest  v kol. priestoru celkom     ",2,null,null,"Počet prenajatých kolokačných miest  v kol. priestoru celkom     ",5]
[]
[null,"Základná cena za jedno kolokačné miesto     ",{"$f":"'Náklady na opakující se služby'!$N$90","v":{"$error":"#DIV/0!"}},null,null,"Základná cena za jedno kolokačné miesto     ",{"$f":"'Náklady na opakující se služby'!$P$86","v":"N/A"}]
[]
[null,"Cena za kolokačné miesto vrátanie nevyužitej kapacity kol. priestoru     ",{"$f":"(C76-'Náklady na opakující se služby'!$C$116)*Ceny!C72/Ceny!C74+'Náklady na opakující se služby'!$C$116","v":{"$error":"#DIV/0!"}},"€",null,"Cena za kolokačné miesto vrátanie nevyužitej kapacity kol. priestoru     ",{"$f":"(G76-'Náklady na opakující se služby'!$C$118)*Ceny!G72/Ceny!G74+'Náklady na opakující se služby'!$C$118","v":{"$error":"#VALUE!"}},"€"]